Workbook

Sheet Start
D11: Tabelid 2
D13: Andmeloendid. Andmeanalüüs ja andmete korrastamine
D15: Sorteerimine, filtreerimine, kokkuvõtted, koondid jm

Sheet Sisukord
B4: Andmeloendite põhiomadused ja põhitegevused nendega
B5: Arvutite müükide arvestus
B6: Töötajate nimekiri
B7: Puidu müükide tabel
B8: Tabeli kirjete sorteerimine ja grupeerimine
B9: Päringud ja filtreerimine
B10: Autofilter
B11: Arendatud filter
B12: Makro kasutamine arendatud filtriga
B13: Kokkuvõtted, koondid jmt
B14: Vahekokkuvõtted - Subtotals
B15: Risttabelid - Pivot Table Report
B16: Funktsioonid COUNTIF ja SUMIF
B17: Andmebaaside funktsioonid

Sheet Loendid
E1: veeb | F1: klipp Andmeloendid
A3: Andmeloendite põhiomadused ja põhitegevused nendega
H4: Arvutid
H6: Mark | I6: Protsessori tüüp | J6: Takt- sagedus | K6: Põhimälu maht | L6: Kõvaketta maht | M6: Hind
H7: Aragorn | I7: AMD Athlon64 | J7: 3 | K7: 512 | L7: 160 | M7: 499
H8: Arven | I8: Intel Core 2 | J8: 2.6 | K8: 256 | L8: 200 | M8: 369
H9: Balrog | I9: Intel Celeron | J9: 2.8 | K9: 256 | L9: 80 | M9: 419
H10: Eldar | I10: Intel Xeon | J10: 3 | K10: 512 | L10: 160 | M10: 465
H11: Elend | I11: Intel Celeron | J11: 4 | K11: 2048 | L11: 400 | M11: 920
H12: Faram | I12: AMD Athlon64 | J12: 3 | K12: 512 | L12: 210 | M12: 599
H13: Frodo | I13: AMD Athlon64 | J13: 3 | K13: 4072 | L13: 500 | M13: 870
B14: Põhitegevused | H14: Gandalf | I14: Intel Xeon | J14: 3.2 | K14: 512 | L14: 160 | M14: 849
H15: Grimbold | I15: Intel Core 2 | J15: 3.8 | K15: 1024 | L15: 320 | M15: 1149
H16: Kalvar | I16: Intel Xeon | J16: 3 | K16: 512 | L16: 160 | M16: 699
H17: Marvin | I17: Intel Celeron | J17: 3 | K17: 512 | L17: 160 | M17: 370
H18: Rohan | I18: AMD Athlon64 | J18: 3.5 | K18: 512 | L18: 160 | M18: 340
H19: Sauron | I19: Intel Xeon | J19: 2.5 | K19: 256 | L19: 180 | M19: 339

Sheet A_müügid
B3: Arvutite müükide arvestus | F3: arvutid
D5: Kokku | E5: =SUM(Arv) -> 90 | G5: =SUM(Maksumus) -> 55522
B7: Kuupäev | C7: Linn | D7: Arvuti | E7: Arv | F7: Hind | G7: Maksumus
B8: 2013-01-02 | C8: Tallinn | D8: Frodo | E8: 2 | F8: =VLOOKUP(Arvuti, Arvutid, 6, 0) -> 870 | G8: =Hind * Arv -> 1740
B9: 2013-01-02 | C9: Valga | D9: Balrog | E9: 1 | F9: =VLOOKUP(Arvuti, Arvutid, 6, 0) -> 419 | G9: 419
B10: 2013-01-03 | C10: Võru | D10: Gandalf | E10: 2 | F10: 849 | G10: 1698
B11: 2013-01-03 | C11: Tallinn | D11: Balrog | E11: 3 | F11: 419 | G11: 1257
B12: 2013-01-03 | C12: Tallinn | D12: Aragorn | E12: 2 | F12: 499 | G12: 998
B13: 2013-01-04 | C13: Tartu | D13: Balrog | E13: 5 | F13: 419 | G13: 2095
B14: 2013-01-04 | C14: Tallinn | D14: Eldar | E14: 3 | F14: 465 | G14: 1395
B15: 2013-01-07 | C15: Valga | D15: Balrog | E15: 6 | F15: 419 | G15: 2514
B16: 2013-01-07 | C16: Pärnu | D16: Eldar | E16: 3 | F16: 465 | G16: 1395
B17: 2013-01-07 | C17: Valga | D17: Frodo | E17: 1 | F17: 870 | G17: 870
B18: 2013-01-07 | C18: Tallinn | D18: Faram | E18: 1 | F18: 599 | G18: 599
B19: 2013-01-09 | C19: Tallinn | D19: Grimbold | E19: 6 | F19: 1149 | G19: 6894
B20: 2013-01-10 | C20: Pärnu | D20: Rohan | E20: 4 | F20: 340 | G20: 1360
B21: 2013-01-10 | C21: Pärnu | D21: Elend | E21: 1 | F21: 920 | G21: 920
B22: 2013-01-10 | C22: Tartu | D22: Sauron | E22: 2 | F22: 339 | G22: 678
B23: 2013-01-11 | C23: Tartu | D23: Balrog | E23: 2 | F23: 419 | G23: 838
B24: 2013-01-11 | C24: Tallinn | D24: Marvin | E24: 1 | F24: 370 | G24: 370
B25: 2013-01-11 | C25: Valga | D25: Aragorn | E25: 1 | F25: 499 | G25: 499
B26: 2013-01-14 | C26: Tartu | D26: Frodo | E26: 4 | F26: 870 | G26: 3480
B27: 2013-01-14 | C27: Pärnu | D27: Gandalf | E27: 3 | F27: 849 | G27: 2547
B28: 2013-01-14 | C28: Valga | D28: Kalvar | E28: 2 | F28: 699 | G28: 1398
B29: 2013-01-16 | C29: Tallinn | D29: Arven | E29: 5 | F29: 369 | G29: 1845
B30: 2013-01-17 | C30: Tallinn | D30: Kalvar | E30: 7 | F30: 699 | G30: 4893
B31: 2013-01-17 | C31: Tartu | D31: Aragorn | E31: 3 | F31: 499 | G31: 1497
B32: 2013-01-18 | C32: Tallinn | D32: Aragorn | E32: 1 | F32: 499 | G32: 499
B33: 2013-01-18 | C33: Pärnu | D33: Eldar | E33: 1 | F33: 465 | G33: 465
B34: 2013-01-19 | C34: Võru | D34: Elend | E34: 5 | F34: 920 | G34: 4600
B35: 2013-01-19 | C35: Tallinn | D35: Faram | E35: 3 | F35: 599 | G35: 1797
B36: 2013-01-19 | C36: Tartu | D36: Kalvar | E36: 1 | F36: 699 | G36: 699
B37: 2013-01-20 | C37: Tallinn | D37: Elend | E37: 2 | F37: 920 | G37: 1840
B38: 2013-01-20 | C38: Võru | D38: Sauron | E38: 3 | F38: 339 | G38: 1017
B39: 2013-01-21 | C39: Pärnu | D39: Arven | E39: 1 | F39: 369 | G39: 369
B40: 2013-01-25 | C40: Võru | D40: Sauron | E40: 1 | F40: 339 | G40: 339
B41: 2013-01-26 | C41: Pärnu | D41: Gandalf | E41: 2 | F41: 849 | G41: 1698

Sheet Töötajad
B3: Töötajad
B4: sortimine | C4: autofilter | D4: arend. filter | E4: vahekokkuv. | F4: risttabel
B6: Isikukood | C6: Eesnimi | D6: Perenimi | E6: Sugu | F6: Sünniaeg | G6: Vanus | H6: Osakond | I6: Amet | J6: Palk | L6: Sugu | M6: Amet | O6: Sugu | P6: Vanus
B7: 37303030624 | C7: Aarne | D7: Mikson | E7: mees | F7: =DATE(MID(B7,2,2),MID(B7,4,2),MID(B7,6,2)) -> 1973-03-03 | G7: =INT((TODAY()-F7)/365.25) -> 46 | H7: Ost | I7: juhataja | J7: 1970 | L7: naine | M7: juhataja | O7: mees | P7: >50
B8: 46809210954 | C8: Aigi | D8: Härm | E8: naine | F8: 1968-09-21 | G8: 51 | H8: Ost | I8: sekretär | J8: 720
B9: 46605150941 | C9: Maarja | D9: Ambros | E9: naine | F9: 1966-05-15 | G9: 53 | H9: Ost | I9: sekretär | J9: 950 | L9: Osakond | M9: Sugu | O9: Amet
B10: 45903030319 | C10: Valve | D10: Mäesalu | E10: naine | F10: 1959-03-03 | G10: 60 | H10: Ost | I10: sekretär | J10: 750 | L10: Ladu | M10: naine | O10: juhataja
B11: 44311130888 | C11: Sirje | D11: Härm | E11: naine | F11: 1943-11-13 | G11: 75 | H11: Ost | I11: sekretär | J11: 570 | L11: Ost | M11: naine | O11: sekretär
B12: 48305030944 | C12: Laine | D12: Eek | E12: naine | F12: 1983-05-03 | G12: 36 | H12: Majandus | I12: sekretär | J12: 510 | L12: Amet | O12: Nädalavahetus
B13: 48105090295 | C13: Annika | D13: Paju | E13: naine | F13: 1981-05-09 | G13: 38 | H13: Majandus | I13: sekretär | J13: 510 | O13: =WEEKDAY(F7,2)=6 -> TRUE
B14: 47302150417 | C14: Mare | D14: Eesmaa | E14: naine | F14: 1973-02-15 | G14: 46 | H14: Majandus | I14: juhataja | J14: 1690 | O14: =WEEKDAY(F7,2)=7 -> FALSE
B15: 45902200391 | C15: Evelin | D15: Põld | E15: naine | F15: 1959-02-20 | G15: 60 | H15: Majandus | I15: sekretär | J15: 640
B16: 44601210234 | C16: Tiina | D16: Toomsalu | E16: naine | F16: 1946-01-21 | G16: 73 | H16: Majandus | I16: koristaja | J16: 430 | L16: Amet
B17: 44203130136 | C17: Mirja | D17: Bergmann | E17: naine | F17: 1942-03-13 | G17: 77 | H17: Majandus | I17: koristaja | J17: 1270 | L17: sekretär
B18: 44012150956 | C18: Aasa | D18: Randla | E18: naine | F18: 1940-12-15 | G18: 78 | H18: Majandus | I18: koristaja | J18: 480 | L18: tööline
B19: 38301080820 | C19: Meelis | D19: Kalju | E19: mees | F19: 1983-01-08 | G19: 36 | H19: Ladu | I19: tööline | J19: 510 | L19: autojuht
B20: 48208230166 | C20: Tiina | D20: Markus | E20: naine | F20: 1982-08-23 | G20: 37 | H20: Ladu | I20: tööline | J20: 500 | L20: lukksepp
B21: 46709190988 | C21: Selma | D21: Parre | E21: naine | F21: 1967-09-19 | G21: 52 | H21: Ladu | I21: tööline | J21: 710 | L21: raamatupidaja
B22: 36008130050 | C22: Einar | D22: Laanepõld | E22: mees | F22: 1960-08-13 | G22: 59 | H22: Ladu | I22: tööline | J22: 500 | L22: juhataja
B23: 45710100356 | C23: Airi | D23: Põld | E23: naine | F23: 1957-10-10 | G23: 62 | H23: Ladu | I23: kompekteerija | J23: 770 | L23: dispetser
B24: 34810190405 | C24: Karl | D24: Salu | E24: mees | F24: 1948-10-19 | G24: 71 | H24: Ladu | I24: dispetser | J24: 660 | L24: müügijuht
B25: 34708140585 | C25: Erki | D25: Arsenov | E25: mees | F25: 1947-08-14 | G25: 72 | H25: Ladu | I25: kompekteerija | J25: 690
B26: 34506190557 | C26: Reijo | D26: Meigas | E26: mees | F26: 1945-06-19 | G26: 74 | H26: Ladu | I26: tööline | J26: 640 | L26: jurist
B27: 34404190222 | C27: Kaivo | D27: Berk | E27: mees | F27: 1944-04-19 | G27: 75 | H27: Ladu | I27: tööline | J27: 510 | L27: treial
B28: 34112180084 | C28: Anton | D28: Meister | E28: mees | F28: 1941-12-18 | G28: 77 | H28: Ladu | I28: juhataja | J28: 1510 | L28: referent
B29: 37803090504 | C29: Jaan | D29: Laubre | E29: mees | F29: 1978-03-09 | G29: 41 | H29: Finants | I29: raamatupidaja | J29: 850 | L29: kompekteerija
B30: 47311270496 | C30: Vilma | D30: Eesmaa | E30: naine | F30: 1973-11-27 | G30: 45 | H30: Finants | I30: raamatupidaja | J30: 770 | L30: koristaja
B31: 47102200902 | C31: Ene | D31: Burmeister | E31: naine | F31: 1971-02-20 | G31: 48 | H31: Finants | I31: raamatupidaja | J31: 710 | L31: valvur
B32: 47010010868 | C32: Faina | D32: Lepp | E32: naine | F32: 1970-10-01 | G32: 49 | H32: Finants | I32: jurist | J32: 1570
B33: 46908050804 | C33: Malle | D33: Kivioja | E33: naine | F33: 1969-08-05 | G33: 50 | H33: Finants | I33: juhataja | J33: 2430
B34: 46404170054 | C34: Katy | D34: Veesimaa | E34: naine | F34: 1964-04-17 | G34: 55 | H34: Finants | I34: referent | J34: 650
B35: 45711080030 | C35: Kristel | D35: Astok | E35: naine | F35: 1957-11-08 | G35: 61 | H35: Finants | I35: raamatupidaja | J35: 850
B36: 45604030496 | C36: Malle | D36: Ligi | E36: naine | F36: 1956-04-03 | G36: 63 | H36: Finants | I36: jurist | J36: 1510
B37: 44607080463 | C37: Evi | D37: Sarapik | E37: naine | F37: 1946-07-08 | G37: 73 | H37: Finants | I37: raamatupidaja | J37: 850
B38: 38302070214 | C38: Priit | D38: Burmeister | E38: mees | F38: 1983-02-07 | G38: 36 | H38: Transport | I38: autojuht | J38: 770
B39: 37708220891 | C39: Ando | D39: Nõmmik | E39: mees | F39: =DATE(MID(B39,2,2),MID(B39,4,2),MID(B39,6,2)) -> 1977-08-22 | G39: =INT((TODAY()-F39)/365.25) -> 42 | H39: Transport | I39: autojuht | J39: 770
B40: 37509120658 | C40: Boris | D40: Küünemäe | E40: mees | F40: 1975-09-12 | G40: 44 | H40: Transport | I40: autojuht | J40: 650
B41: 47111150090 | C41: Tiina | D41: Rajamäe | E41: naine | F41: 1971-11-15 | G41: 47 | H41: Transport | I41: dispetser | J41: 710
B42: 37111200348 | C42: Margus | D42: Roosimägi | E42: mees | F42: 1971-11-20 | G42: 47 | H42: Transport | I42: autojuht | J42: 910
B43: 47110060467 | C43: Elvi | D43: Berk | E43: naine | F43: 1971-10-06 | G43: 48 | H43: Transport | I43: dispetser | J43: 640
B44: 36907260696 | C44: Hanno | D44: Pedak | E44: mees | F44: 1969-07-26 | G44: 50 | H44: Transport | I44: autojuht | J44: 710
B45: 36802240722 | C45: Ahto | D45: Danilov | E45: mees | F45: 1968-02-24 | G45: 51 | H45: Transport | I45: autojuht | J45: 910
B46: 36512210549 | C46: Paul | D46: Naaber | E46: mees | F46: 1965-12-21 | G46: 53 | H46: Transport | I46: autojuht | J46: 700
B47: 45809140289 | C47: Kristiina | D47: Oks | E47: naine | F47: 1958-09-14 | G47: 61 | H47: Transport | I47: dispetser | J47: 630
B48: 35809050610 | C48: Aadu | D48: Malva | E48: mees | F48: 1958-09-05 | G48: 61 | H48: Transport | I48: autojuht | J48: 790
B49: 35408240148 | C49: Arnold | D49: Merilaid | E49: mees | F49: 1954-08-24 | G49: 65 | H49: Transport | I49: autojuht | J49: 630
B50: 35001130124 | C50: Aarne | D50: Oks | E50: mees | F50: 1950-01-13 | G50: 69 | H50: Transport | I50: autojuht | J50: 700
B51: 34906210936 | C51: Jaan | D51: Kaasik | E51: mees | F51: 1949-06-21 | G51: 70 | H51: Transport | I51: autojuht | J51: 730
B52: 34204170615 | C52: Aadu | D52: Pulk | E52: mees | F52: 1942-04-17 | G52: 77 | H52: Transport | I52: valvur | J52: 430
B53: 48801180808 | C53: Erika | D53: Kasemets | E53: naine | F53: 1988-01-18 | G53: 31 | H53: Müük | I53: sekretär | J53: 650
B54: 48704250911 | C54: Helen | D54: Aigro | E54: naine | F54: 1987-04-25 | G54: 32 | H54: Müük | I54: sekretär | J54: 570
B55: 38303010526 | C55: Jaan | D55: Noormets | E55: mees | F55: 1983-03-01 | G55: 36 | H55: Müük | I55: diiler | J55: 770
B56: 48210210529 | C56: Faina | D56: Kukk | E56: naine | F56: 1982-10-21 | G56: 37 | H56: Müük | I56: sekretär | J56: 580
B57: 38206070961 | C57: Reijo | D57: Okspuu | E57: mees | F57: 1982-06-07 | G57: 37 | H57: Müük | I57: diiler | J57: 650
B58: 38104220473 | C58: Aare | D58: Raudsepp | E58: mees | F58: 1981-04-22 | G58: 38 | H58: Müük | I58: diiler | J58: 700
B59: 37906080465 | C59: Kristjan | D59: Mägi | E59: mees | F59: 1979-06-08 | G59: 40 | H59: Müük | I59: diiler | J59: 730
B60: 47605040659 | C60: Hilja | D60: Raid | E60: naine | F60: 1976-05-04 | G60: 43 | H60: Müük | I60: sekretär | J60: 640
B61: 47110240441 | C61: Ene | D61: Elmik | E61: naine | F61: 1971-10-24 | G61: 48 | H61: Müük | I61: müügijuht | J61: 850
B62: 47110070151 | C62: Erika | D62: Bachmann | E62: naine | F62: 1971-10-07 | G62: 48 | H62: Müük | I62: müügijuht | J62: 900
B63: 37006180544 | C63: Erno | D63: Salumets | E63: mees | F63: 1970-06-18 | G63: 49 | H63: Müük | I63: juhataja | J63: 2430
B64: 46809170171 | C64: Jana | D64: Kaal | E64: naine | F64: 1968-09-17 | G64: 51 | H64: Müük | I64: sekretär | J64: 570
B65: 36709040675 | C65: Tarmo | D65: Müller | E65: mees | F65: 1967-09-04 | G65: 52 | H65: Müük | I65: müügijuht | J65: 1390
B66: 45209010485 | C66: Juulia | D66: Tubin | E66: naine | F66: 1952-09-01 | G66: 67 | H66: Müük | I66: sekretär | J66: 570
B67: 38502110722 | C67: Karl | D67: Agur | E67: mees | F67: 1985-02-11 | G67: 34 | H67: Tootmine | I67: tööline | J67: 870
B68: 38211130833 | C68: Meelis | D68: Petrov | E68: mees | F68: 1982-11-13 | G68: 36 | H68: Tootmine | I68: tööline | J68: 570
B69: 38201060031 | C69: Raivo | D69: Lokk | E69: mees | F69: 1982-01-06 | G69: 37 | H69: Tootmine | I69: tööline | J69: 650
B70: 38205190379 | C70: Aadu | D70: Heinlo | E70: mees | F70: 1982-05-19 | G70: 37 | H70: Tootmine | I70: lukksepp | J70: 570
B71: 48109130038 | C71: Kersti | D71: Miller | E71: naine | F71: =DATE(MID(B71,2,2),MID(B71,4,2),MID(B71,6,2)) -> 1981-09-13 | G71: =INT((TODAY()-F71)/365.25) -> 38 | H71: Tootmine | I71: tööline | J71: 570
B72: 48007150516 | C72: Erna | D72: Eek | E72: naine | F72: 1980-07-15 | G72: 39 | H72: Tootmine | I72: tööline | J72: 550
B73: 38008200347 | C73: Arnold | D73: Norak | E73: mees | F73: 1980-08-20 | G73: 39 | H73: Tootmine | I73: tööline | J73: 710
B74: 38005180669 | C74: Hanno | D74: Pajusaar | E74: mees | F74: 1980-05-18 | G74: 39 | H74: Tootmine | I74: tööline | J74: 760
B75: 37612170754 | C75: Eevald | D75: Parts | E75: mees | F75: 1976-12-17 | G75: 42 | H75: Tootmine | I75: lukksepp | J75: 860
B76: 47508150058 | C76: Irma | D76: Piirsalu | E76: naine | F76: 1975-08-15 | G76: 44 | H76: Tootmine | I76: tööline | J76: 700
B77: 37308230939 | C77: Madis | D77: Paulus | E77: mees | F77: 1973-08-23 | G77: 46 | H77: Tootmine | I77: tööline | J77: 750
B78: 37105220288 | C78: Kustav | D78: Salu | E78: mees | F78: 1971-05-22 | G78: 48 | H78: Tootmine | I78: tööline | J78: 770
B79: 47005130963 | C79: Heli | D79: Lind | E79: naine | F79: 1970-05-13 | G79: 49 | H79: Tootmine | I79: tööline | J79: 500
B80: 37003260243 | C80: Reijo | D80: Muld | E80: mees | F80: 1970-03-26 | G80: 49 | H80: Tootmine | I80: tööline | J80: 790
B81: 37005020007 | C81: Erki | D81: Lepiksoo | E81: mees | F81: 1970-05-02 | G81: 49 | H81: Tootmine | I81: treial | J81: 790
B82: 37002030149 | C82: Kristjan | D82: Jürimäe | E82: mees | F82: 1970-02-03 | G82: 49 | H82: Tootmine | I82: lukksepp | J82: 850
B83: 36504060863 | C83: Arvi | D83: Väljas | E83: mees | F83: 1965-04-06 | G83: 54 | H83: Tootmine | I83: tööline | J83: 580
B84: 36406070555 | C84: Aarne | D84: Norak | E84: mees | F84: 1964-06-07 | G84: 55 | H84: Tootmine | I84: tööline | J84: 620
B85: 36405130719 | C85: Erki | D85: Ainsaar | E85: mees | F85: 1964-05-13 | G85: 55 | H85: Tootmine | I85: lukksepp | J85: 1200
B86: 46307080393 | C86: Malle | D86: Põldmaa | E86: naine | F86: 1963-07-08 | G86: 56 | H86: Tootmine | I86: tööline | J86: 650
B87: 36203030988 | C87: Kaivo | D87: Mets | E87: mees | F87: 1962-03-03 | G87: 57 | H87: Tootmine | I87: meister | J87: 920
B88: 36110090988 | C88: Aadu | D88: Elson | E88: mees | F88: 1961-10-09 | G88: 58 | H88: Tootmine | I88: tööline | J88: 750
B89: 36009040214 | C89: Andrus | D89: Koort | E89: mees | F89: 1960-09-04 | G89: 59 | H89: Tootmine | I89: treial | J89: 770
B90: 35901050084 | C90: Ahti | D90: Tubin | E90: mees | F90: 1959-01-05 | G90: 60 | H90: Tootmine | I90: treial | J90: 900
B91: 35312110930 | C91: Kaspar | D91: Veesimaa | E91: mees | F91: 1953-12-11 | G91: 65 | H91: Tootmine | I91: tööline | J91: 580
B92: 35404050446 | C92: Reijo | D92: Bauman | E92: mees | F92: 1954-04-05 | G92: 65 | H92: Tootmine | I92: tööline | J92: 700
B93: 35105180673 | C93: Eino | D93: Luige | E93: mees | F93: 1951-05-18 | G93: 68 | H93: Tootmine | I93: tööline | J93: 510
B94: 35104120460 | C94: Reijo | D94: Müürsepp | E94: mees | F94: 1951-04-12 | G94: 68 | H94: Tootmine | I94: lukksepp | J94: 770
B95: 35009030894 | C95: Margus | D95: Maasalu | E95: mees | F95: 1950-09-03 | G95: 69 | H95: Tootmine | I95: tööline | J95: 710
B96: 34811280456 | C96: Argo | D96: Salu | E96: mees | F96: 1948-11-28 | G96: 70 | H96: Tootmine | I96: tööline | J96: 770
B97: 44406270104 | C97: Sirje | D97: Kreen | E97: naine | F97: 1944-06-27 | G97: 75 | H97: Tootmine | I97: tööline | J97: 975
B98: 34408020335 | C98: Aare | D98: Marmor | E98: mees | F98: 1944-08-02 | G98: 75 | H98: Tootmine | I98: meister | J98: 950
B99: 34309100049 | C99: Madis | D99: Maasalu | E99: mees | F99: 1943-09-10 | G99: 76 | H99: Tootmine | I99: tööline | J99: 720
B100: 44111240925 | C100: Leida | D100: Jaanus | E100: naine | F100: 1941-11-24 | G100: 77 | H100: Tootmine | I100: tööline | J100: 640
B101: 34103030178 | C101: Einar | D101: Ehala | E101: mees | F101: 1941-03-03 | G101: 78 | H101: Tootmine | I101: treial | J101: 680
B102: 34110060017 | C102: Marko | D102: Erikson | E102: mees | F102: 1941-10-06 | G102: 78 | H102: Tootmine | I102: meister | J102: 920
B103: 34107110230 | C103: Hendrik | D103: Kanter | E103: mees | F103: 1941-07-11 | G103: =INT((TODAY()-F103)/365.25) -> 78 | H103: Tootmine | I103: juhataja | J103: 2180
B104: 33904050217 | C104: Olav | D104: Berk | E104: mees | F104: 1939-04-05 | G104: 80 | H104: Tootmine | I104: tööline | J104: 580
B105: 33907250511 | C105: Riho | D105: Kuusk | E105: mees | F105: 1939-07-25 | G105: 80 | H105: Tootmine | I105: tööline | J105: 690

Sheet Rist_koond
A2: Osakondade palkade summa
A4: Row Labels | B4: Sum of Palk
A5: Finants | B5: 10190
A6: Ladu | B6: 7000
A7: Majandus | B7: 5530
A8: Müük | B8: 12000
A9: Ost | B9: 4960
A10: Tootmine | B10: 30025
A11: Transport | B11: 10680
A12: Grand Total | B12: 80385
A15: Keskmine palk sugude ja vanuste vahemike lõike
A17: Osakond | B17: (All)
A19: Average of Palk | B19: Column Labels
A20: Row Labels | B20: mees | C20: naine | D20: Grand Total
A21: 25-34 | B21: 870 | C21: 610 | D21: 696.6666667
A22: 35-44 | B22: 701.3333333 | C22: 570 | D22: 655.6521739
A23: 45-54 | B23: 1042.307692 | C23: 980 | D23: 1010
A24: 55-64 | B24: 806.25 | C24: 806.25 | D24: 806.25
A25: 65-74 | B25: 674.1666667 | C25: 616.6666667 | D25: 662.6666667
A26: 75-84 | B26: 917 | C26: 787 | D26: 873.6666667
A27: Grand Total | B27: 824.5762712 | C27: 793.375 | D27: 811.969697

Sheet Filter_AT
A2: Kirjed, kus sugu on mees, vanus > 50 ja palk < 1000.
A4: Isikukood | B4: Eesnimi | C4: Perenimi | D4: Sugu | E4: Sünniaeg | F4: Vanus | G4: Osakond | H4: Amet | I4: Palk
A5: 36802240722 | B5: Ahto | C5: Danilov | D5: mees | E5: 1968-02-24 | F5: 51 | G5: Transport | H5: autojuht | I5: 910
A6: 36512210549 | B6: Paul | C6: Naaber | D6: mees | E6: 1965-12-21 | F6: 53 | G6: Transport | H6: autojuht | I6: 700
A7: 36504060863 | B7: Arvi | C7: Väljas | D7: mees | E7: 1965-04-06 | F7: 54 | G7: Tootmine | H7: tööline | I7: 580
A8: 36406070555 | B8: Aarne | C8: Norak | D8: mees | E8: 1964-06-07 | F8: 55 | G8: Tootmine | H8: tööline | I8: 620
A9: 36203030988 | B9: Kaivo | C9: Mets | D9: mees | E9: 1962-03-03 | F9: 57 | G9: Tootmine | H9: meister | I9: 920
A10: 36110090988 | B10: Aadu | C10: Elson | D10: mees | E10: 1961-10-09 | F10: 58 | G10: Tootmine | H10: tööline | I10: 750
A11: 36008130050 | B11: Einar | C11: Laanepõld | D11: mees | E11: 1960-08-13 | F11: 59 | G11: Ladu | H11: tööline | I11: 500
A12: 36009040214 | B12: Andrus | C12: Koort | D12: mees | E12: 1960-09-04 | F12: 59 | G12: Tootmine | H12: treial | I12: 770
A13: 35901050084 | B13: Ahti | C13: Tubin | D13: mees | E13: 1959-01-05 | F13: 60 | G13: Tootmine | H13: treial | I13: 900
A14: 35809050610 | B14: Aadu | C14: Malva | D14: mees | E14: 1958-09-05 | F14: 61 | G14: Transport | H14: autojuht | I14: 790
A15: 35312110930 | B15: Kaspar | C15: Veesimaa | D15: mees | E15: 1953-12-11 | F15: 65 | G15: Tootmine | H15: tööline | I15: 580
A16: 35404050446 | B16: Reijo | C16: Bauman | D16: mees | E16: 1954-04-05 | F16: 65 | G16: Tootmine | H16: tööline | I16: 700
A17: 35408240148 | B17: Arnold | C17: Merilaid | D17: mees | E17: 1954-08-24 | F17: 65 | G17: Transport | H17: autojuht | I17: 630
A18: 35105180673 | B18: Eino | C18: Luige | D18: mees | E18: 1951-05-18 | F18: 68 | G18: Tootmine | H18: tööline | I18: 510
A19: 35104120460 | B19: Reijo | C19: Müürsepp | D19: mees | E19: 1951-04-12 | F19: 68 | G19: Tootmine | H19: lukksepp | I19: 770
A20: 35009030894 | B20: Margus | C20: Maasalu | D20: mees | E20: 1950-09-03 | F20: 69 | G20: Tootmine | H20: tööline | I20: 710
A21: 35001130124 | B21: Aarne | C21: Oks | D21: mees | E21: 1950-01-13 | F21: 69 | G21: Transport | H21: autojuht | I21: 700
A22: 34811280456 | B22: Argo | C22: Salu | D22: mees | E22: 1948-11-28 | F22: 70 | G22: Tootmine | H22: tööline | I22: 770
A23: 34906210936 | B23: Jaan | C23: Kaasik | D23: mees | E23: 1949-06-21 | F23: 70 | G23: Transport | H23: autojuht | I23: 730
A24: 34810190405 | B24: Karl | C24: Salu | D24: mees | E24: 1948-10-19 | F24: 71 | G24: Ladu | H24: dispetser | I24: 660
A25: 34708140585 | B25: Erki | C25: Arsenov | D25: mees | E25: 1947-08-14 | F25: 72 | G25: Ladu | H25: kompekteerija | I25: 690
A26: 34506190557 | B26: Reijo | C26: Meigas | D26: mees | E26: 1945-06-19 | F26: 74 | G26: Ladu | H26: tööline | I26: 640
A27: 34404190222 | B27: Kaivo | C27: Berk | D27: mees | E27: 1944-04-19 | F27: 75 | G27: Ladu | H27: tööline | I27: 510
A28: 34408020335 | B28: Aare | C28: Marmor | D28: mees | E28: 1944-08-02 | F28: 75 | G28: Tootmine | H28: meister | I28: 950
A29: 34309100049 | B29: Madis | C29: Maasalu | D29: mees | E29: 1943-09-10 | F29: 76 | G29: Tootmine | H29: tööline | I29: 720
A30: 34204170615 | B30: Aadu | C30: Pulk | D30: mees | E30: 1942-04-17 | F30: 77 | G30: Transport | H30: valvur | I30: 430
A31: 34103030178 | B31: Einar | C31: Ehala | D31: mees | E31: 1941-03-03 | F31: 78 | G31: Tootmine | H31: treial | I31: 680
A32: 34110060017 | B32: Marko | C32: Erikson | D32: mees | E32: 1941-10-06 | F32: 78 | G32: Tootmine | H32: meister | I32: 920
A33: 33904050217 | B33: Olav | C33: Berk | D33: mees | E33: 1939-04-05 | F33: 80 | G33: Tootmine | H33: tööline | I33: 580
A34: 33907250511 | B34: Riho | C34: Kuusk | D34: mees | E34: 1939-07-25 | F34: 80 | G34: Tootmine | H34: tööline | I34: 690
A37: Kirjed, kus osakond on ladu või ost ja sugu on naine
A39: Isikukood | B39: Eesnimi | C39: Perenimi | D39: Sugu | E39: Sünniaeg | F39: Vanus | G39: Osakond | H39: Amet | I39: Palk
A40: 48208230166 | B40: Tiina | C40: Markus | D40: naine | E40: 1982-08-23 | F40: 37 | G40: Ladu | H40: tööline | I40: 500
A41: 46809210954 | B41: Aigi | C41: Härm | D41: naine | E41: 1968-09-21 | F41: 51 | G41: Ost | H41: sekretär | I41: 720
A42: 46709190988 | B42: Selma | C42: Parre | D42: naine | E42: 1967-09-19 | F42: 52 | G42: Ladu | H42: tööline | I42: 710
A43: 46605150941 | B43: Maarja | C43: Ambros | D43: naine | E43: 1966-05-15 | F43: 53 | G43: Ost | H43: sekretär | I43: 950
A44: 45903030319 | B44: Valve | C44: Mäesalu | D44: naine | E44: 1959-03-03 | F44: 60 | G44: Ost | H44: sekretär | I44: 750
A45: 45710100356 | B45: Airi | C45: Põld | D45: naine | E45: 1957-10-10 | F45: 62 | G45: Ladu | H45: kompekteerija | I45: 770
A46: 44311130888 | B46: Sirje | C46: Härm | D46: naine | E46: 1943-11-13 | F46: 75 | G46: Ost | H46: sekretär | I46: 570
A49: Kirjed, kus amet on juhataja või sekretär
A51: Isikukood | B51: Eesnimi | C51: Perenimi | D51: Sugu | E51: Sünniaeg | F51: Vanus | G51: Osakond | H51: Amet | I51: Palk | K51: Amet
A52: 48801180808 | B52: Erika | C52: Kasemets | D52: naine | E52: 1988-01-18 | F52: 31 | G52: Müük | H52: sekretär | I52: 650 | K52: juhataja
A53: 48704250911 | B53: Helen | C53: Aigro | D53: naine | E53: 1987-04-25 | F53: 32 | G53: Müük | H53: sekretär | I53: 570 | K53: sekretär
A54: 48305030944 | B54: Laine | C54: Eek | D54: naine | E54: 1983-05-03 | F54: 36 | G54: Majandus | H54: sekretär | I54: 510
A55: 48210210529 | B55: Faina | C55: Kukk | D55: naine | E55: 1982-10-21 | F55: 37 | G55: Müük | H55: sekretär | I55: 580
A56: 48105090295 | B56: Annika | C56: Paju | D56: naine | E56: 1981-05-09 | F56: 38 | G56: Majandus | H56: sekretär | I56: 510
A57: 47605040659 | B57: Hilja | C57: Raid | D57: naine | E57: 1976-05-04 | F57: 43 | G57: Müük | H57: sekretär | I57: 640
A58: 47302150417 | B58: Mare | C58: Eesmaa | D58: naine | E58: 1973-02-15 | F58: 46 | G58: Majandus | H58: juhataja | I58: 1690
A59: 37303030624 | B59: Aarne | C59: Mikson | D59: mees | E59: 1973-03-03 | F59: 46 | G59: Ost | H59: juhataja | I59: 1970
A60: 37006180544 | B60: Erno | C60: Salumets | D60: mees | E60: 1970-06-18 | F60: 49 | G60: Müük | H60: juhataja | I60: 2430
A61: 46908050804 | B61: Malle | C61: Kivioja | D61: naine | E61: 1969-08-05 | F61: 50 | G61: Finants | H61: juhataja | I61: 2430
A62: 46809170171 | B62: Jana | C62: Kaal | D62: naine | E62: 1968-09-17 | F62: 51 | G62: Müük | H62: sekretär | I62: 570
A63: 46809210954 | B63: Aigi | C63: Härm | D63: naine | E63: 1968-09-21 | F63: 51 | G63: Ost | H63: sekretär | I63: 720
A64: 46605150941 | B64: Maarja | C64: Ambros | D64: naine | E64: 1966-05-15 | F64: 53 | G64: Ost | H64: sekretär | I64: 950
A65: 45902200391 | B65: Evelin | C65: Põld | D65: naine | E65: 1959-02-20 | F65: 60 | G65: Majandus | H65: sekretär | I65: 640
A66: 45903030319 | B66: Valve | C66: Mäesalu | D66: naine | E66: 1959-03-03 | F66: 60 | G66: Ost | H66: sekretär | I66: 750
A67: 45209010485 | B67: Juulia | C67: Tubin | D67: naine | E67: 1952-09-01 | F67: 67 | G67: Müük | H67: sekretär | I67: 570
A68: 44311130888 | B68: Sirje | C68: Härm | D68: naine | E68: 1943-11-13 | F68: 75 | G68: Ost | H68: sekretär | I68: 570
A69: 34112180084 | B69: Anton | C69: Meister | D69: mees | E69: 1941-12-18 | F69: 77 | G69: Ladu | H69: juhataja | I69: 1510
A70: 34107110230 | B70: Hendrik | C70: Kanter | D70: mees | E70: 1941-07-11 | F70: 78 | G70: Tootmine | H70: juhataja | I70: 2180
A73: Kirjed, kus amet on müügijuht või jurist, vanus <=50 ja palk <= 1200
A75: Eesnimi | B75: Perenimi | C75: Amet | D75: Vanus | E75: Palk | G75: Amet | H75: Vanus | I75: Palk
A76: Ene | B76: Elmik | C76: müügijuht | D76: 48 | E76: 850 | G76: müügijuht | H76: <=50 | I76: <=1200
A77: Erika | B77: Bachmann | C77: müügijuht | D77: 48 | E77: 900 | G77: jurist | H77: <=50 | I77: <=1200

Sheet P_Müügid
B2: Puidu müük | D2: AS Karu & Pojad | H2: =YEAR(C9) -> 2013 | K2: P-abi
B4: sortimine | C4: autofilter | D4: arend. filter | E4: vahekokkuv. | F4: risttabel | G4: SumIF
G6: Kokku | I6: =SUM(P_kogus) -> 17099 | K6: =SUM(P_maks) -> 1121210
B8: P_arve | C8: P_kuupäev | D8: P_ostja | E8: P_maa | F8: P_liik | G8: P_sort | H8: P_müüja | I8: P_kogus | J8: P_hind | K8: P_maks | L8: P_kuu
B9: P256 | C9: 2013-11-04 | D9: Känd | E9: =VLOOKUP(P_ostja, o_tab, 2, 0) -> Harju | F9: haab | G9: 1 | H9: Ilves | I9: 23 | J9: =VLOOKUP(P_liik, P_hinnad, P_sort+1, 0) -> 50 | K9: =P_hind * P_kogus -> 1150 | L9: =MONTH(P_kuupäev) -> 11
B10: P176 | C10: 2013-08-04 | D10: Känd | E10: Harju | F10: kask | G10: 1 | H10: Siil | I10: 40 | J10: 70 | K10: 2800 | L10: 8
B11: P199 | C11: 2013-08-30 | D11: Känd | E11: Harju | F11: kask | G11: 1 | H11: Rebane | I11: 14 | J11: 70 | K11: 980 | L11: 8
B12: P070 | C12: 2013-03-25 | D12: Känd | E12: Harju | F12: kuusk | G12: 1 | H12: Ilves | I12: 72 | J12: 80 | K12: 5760 | L12: 3
B13: P070 | C13: 2013-03-25 | D13: Känd | E13: Harju | F13: kuusk | G13: 2 | H13: Ilves | I13: 58 | J13: 72 | K13: 4176 | L13: 3
B14: P097 | C14: 2013-04-24 | D14: Känd | E14: Harju | F14: kuusk | G14: 1 | H14: Ilves | I14: 29 | J14: 80 | K14: 2320 | L14: 4
B15: P097 | C15: 2013-04-24 | D15: Känd | E15: Harju | F15: küte | G15: 3 | H15: Ilves | I15: 63 | J15: 38 | K15: 2394 | L15: 4
B16: P088 | C16: 2013-04-16 | D16: Känd | E16: Harju | F16: lepp | G16: 1 | H16: Põder | I16: 40 | J16: 65 | K16: 2600 | L16: 4
B17: P176 | C17: 2013-08-04 | D17: Känd | E17: Harju | F17: lepp | G17: 2 | H17: Siil | I17: 31 | J17: 59 | K17: 1829 | L17: 8
B18: P180 | C18: 2013-08-08 | D18: Känd | E18: Harju | F18: lepp | G18: 3 | H18: Hunt | I18: 31 | J18: 52 | K18: 1612 | L18: 8
B19: P199 | C19: 2013-08-30 | D19: Känd | E19: Harju | F19: lepp | G19: 3 | H19: Rebane | I19: 10 | J19: 52 | K19: 520 | L19: 8
B20: P088 | C20: 2013-04-16 | D20: Känd | E20: Harju | F20: mänd | G20: 2 | H20: Põder | I20: 61 | J20: 68 | K20: 4148 | L20: 4
B21: P131 | C21: 2013-05-29 | D21: Känd | E21: Harju | F21: mänd | G21: 3 | H21: Hunt | I21: 79 | J21: 60 | K21: 4740 | L21: 5
B22: P151 | C22: 2013-07-01 | D22: Känd | E22: Harju | F22: saar | G22: 1 | H22: Jänes | I22: 49 | J22: 85 | K22: 4165 | L22: 7
B23: P180 | C23: 2013-08-08 | D23: Känd | E23: Harju | F23: saar | G23: 1 | H23: Hunt | I23: 23 | J23: 85 | K23: 1955 | L23: 8
B24: P026 | C24: 2013-01-28 | D24: Känd | E24: Harju | F24: tamm | G24: 2 | H24: Siil | I24: 11 | J24: 99 | K24: 1089 | L24: 1
B25: P097 | C25: 2013-04-24 | D25: Känd | E25: Harju | F25: tamm | G25: 1 | H25: Ilves | I25: 43 | J25: 110 | K25: 4730 | L25: 4
B26: P042 | C26: 2013-02-21 | D26: Mänd | E26: Harju | F26: haab | G26: 3 | H26: Põder | I26: 26 | J26: 40 | K26: 1040 | L26: 2
B27: P237 | C27: 2013-10-16 | D27: Mänd | E27: Harju | F27: kask | G27: 3 | H27: Karu | I27: 76 | J27: 56 | K27: 4256 | L27: 10
B28: P237 | C28: 2013-10-16 | D28: Mänd | E28: Harju | F28: kask | G28: 1 | H28: Karu | I28: 49 | J28: 70 | K28: 3430 | L28: 10
B29: P257 | C29: 2013-11-05 | D29: Mänd | E29: Harju | F29: kuusk | G29: 1 | H29: Põder | I29: 68 | J29: 80 | K29: 5440 | L29: 11
B30: P009 | C30: 2013-01-08 | D30: Mänd | E30: Harju | F30: küte | G30: 1 | H30: Jänes | I30: 45 | J30: 47 | K30: 2115 | L30: 1
B31: P244 | C31: 2013-10-22 | D31: Mänd | E31: Harju | F31: küte | G31: 3 | H31: Siil | I31: 61 | J31: 38 | K31: 2318 | L31: 10
B32: P089 | C32: 2013-04-16 | D32: Mänd | E32: Harju | F32: lepp | G32: 2 | H32: Põder | I32: 25 | J32: 59 | K32: 1475 | L32: 4
B33: P041 | C33: 2013-02-20 | D33: Mänd | E33: Harju | F33: mänd | G33: 1 | H33: Siil | I33: 74 | J33: 75 | K33: 5550 | L33: 2
B34: P145 | C34: 2013-06-19 | D34: Mänd | E34: Harju | F34: mänd | G34: 3 | H34: Karu | I34: 47 | J34: 60 | K34: 2820 | L34: 6
B35: P240 | C35: 2013-10-19 | D35: Mänd | E35: Harju | F35: mänd | G35: 1 | H35: Ilves | I35: 55 | J35: 75 | K35: 4125 | L35: 10
B36: P257 | C36: 2013-11-05 | D36: Mänd | E36: Harju | F36: mänd | G36: 2 | H36: Põder | I36: 23 | J36: 68 | K36: 1564 | L36: 11
B37: P042 | C37: 2013-02-21 | D37: Mänd | E37: Harju | F37: saar | G37: 1 | H37: Põder | I37: 49 | J37: 85 | K37: 4165 | L37: 2
B38: P247 | C38: 2013-10-25 | D38: Tuvi | E38: Harju | F38: haab | G38: 2 | H38: Põder | I38: 10 | J38: 45 | K38: 450 | L38: 10
B39: P273 | C39: 2013-12-01 | D39: Tuvi | E39: Harju | F39: kask | G39: 2 | H39: Karu | I39: 48 | J39: 63 | K39: 3024 | L39: 12
B40: P242 | C40: 2013-10-21 | D40: Tuvi | E40: Harju | F40: kuusk | G40: 1 | H40: Karu | I40: 24 | J40: 80 | K40: 1920 | L40: 10
B41: P247 | C41: 2013-10-25 | D41: Tuvi | E41: Harju | F41: kuusk | G41: 1 | H41: Põder | I41: 39 | J41: 80 | K41: 3120 | L41: 10
B42: P283 | C42: 2013-12-12 | D42: Tuvi | E42: Harju | F42: kuusk | G42: 1 | H42: Karu | I42: 63 | J42: 80 | K42: 5040 | L42: 12
B43: P284 | C43: 2013-12-13 | D43: Tuvi | E43: Harju | F43: kuusk | G43: 1 | H43: Hunt | I43: 26 | J43: 80 | K43: 2080 | L43: 12
B44: P027 | C44: 2013-01-30 | D44: Tuvi | E44: Harju | F44: küte | G44: 1 | H44: Siil | I44: 27 | J44: 47 | K44: 1269 | L44: 1
B45: P166 | C45: 2013-07-23 | D45: Tuvi | E45: Harju | F45: küte | G45: 1 | H45: Põder | I45: 17 | J45: 47 | K45: 799 | L45: 7
B46: P094 | C46: 2013-04-20 | D46: Tuvi | E46: Harju | F46: lepp | G46: 1 | H46: Hunt | I46: 30 | J46: 65 | K46: 1950 | L46: 4
B47: P129 | C47: 2013-05-26 | D47: Tuvi | E47: Harju | F47: lepp | G47: 1 | H47: Siil | I47: 24 | J47: 65 | K47: 1560 | L47: 5
B48: P094 | C48: 2013-04-20 | D48: Tuvi | E48: Harju | F48: mänd | G48: 2 | H48: Hunt | I48: 53 | J48: 68 | K48: 3604 | L48: 4
B49: P163 | C49: 2013-07-18 | D49: Tuvi | E49: Harju | F49: mänd | G49: 3 | H49: Rebane | I49: 36 | J49: 60 | K49: 2160 | L49: 7
B50: P166 | C50: 2013-07-23 | D50: Tuvi | E50: Harju | F50: mänd | G50: 1 | H50: Põder | I50: 74 | J50: 75 | K50: 5550 | L50: 7
B51: P242 | C51: 2013-10-21 | D51: Tuvi | E51: Harju | F51: mänd | G51: 3 | H51: Karu | I51: 60 | J51: 60 | K51: 3600 | L51: 10
B52: P066 | C52: 2013-03-22 | D52: Tuvi | E52: Harju | F52: saar | G52: 1 | H52: Karu | I52: 67 | J52: 85 | K52: 5695 | L52: 3
B53: P066 | C53: 2013-03-22 | D53: Tuvi | E53: Harju | F53: saar | G53: 1 | H53: Karu | I53: 52 | J53: 85 | K53: 4420 | L53: 3
B54: P163 | C54: 2013-07-18 | D54: Tuvi | E54: Harju | F54: saar | G54: 2 | H54: Rebane | I54: 12 | J54: 77 | K54: 924 | L54: 7
B55: P284 | C55: 2013-12-13 | D55: Tuvi | E55: Harju | F55: tamm | G55: 2 | H55: Hunt | I55: 18 | J55: 99 | K55: 1782 | L55: 12
B56: P015 | C56: 2013-01-16 | D56: Varblane | E56: Harju | F56: haab | G56: 3 | H56: Hunt | I56: 17 | J56: 40 | K56: 680 | L56: 1
B57: P059 | C57: 2013-03-12 | D57: Varblane | E57: Harju | F57: haab | G57: 2 | H57: Põder | I57: 75 | J57: 45 | K57: 3375 | L57: 3
B58: P062 | C58: 2013-03-18 | D58: Varblane | E58: Harju | F58: haab | G58: 2 | H58: Jänes | I58: 49 | J58: 45 | K58: 2205 | L58: 3
B59: P062 | C59: 2013-03-18 | D59: Varblane | E59: Harju | F59: haab | G59: 1 | H59: Jänes | I59: 36 | J59: 50 | K59: 1800 | L59: 3
B60: P083 | C60: 2013-04-10 | D60: Varblane | E60: Harju | F60: haab | G60: 1 | H60: Rebane | I60: 30 | J60: 50 | K60: 1500 | L60: 4
B61: P200 | C61: 2013-08-31 | D61: Varblane | E61: Harju | F61: haab | G61: 1 | H61: Rebane | I61: 25 | J61: 50 | K61: 1250 | L61: 8
B62: P218 | C62: 2013-09-24 | D62: Varblane | E62: Harju | F62: haab | G62: 2 | H62: Rebane | I62: 58 | J62: 45 | K62: 2610 | L62: 9
B63: P254 | C63: 2013-11-01 | D63: Varblane | E63: Harju | F63: haab | G63: 1 | H63: Jänes | I63: 26 | J63: 50 | K63: 1300 | L63: 11
B64: P046 | C64: 2013-02-27 | D64: Varblane | E64: Harju | F64: kask | G64: 1 | H64: Rebane | I64: 34 | J64: 70 | K64: 2380 | L64: 2
B65: P049 | C65: 2013-03-01 | D65: Varblane | E65: Harju | F65: kask | G65: 1 | H65: Siil | I65: 73 | J65: 70 | K65: 5110 | L65: 3
B66: P232 | C66: 2013-10-11 | D66: Varblane | E66: Harju | F66: kask | G66: 3 | H66: Põder | I66: 71 | J66: 56 | K66: 3976 | L66: 10
B67: P254 | C67: 2013-11-01 | D67: Varblane | E67: Harju | F67: kask | G67: 3 | H67: Jänes | I67: 52 | J67: 56 | K67: 2912 | L67: 11
B68: P104 | C68: 2013-04-30 | D68: Varblane | E68: Harju | F68: kuusk | G68: 2 | H68: Ilves | I68: 54 | J68: 72 | K68: 3888 | L68: 4
B69: P218 | C69: 2013-09-24 | D69: Varblane | E69: Harju | F69: kuusk | G69: 1 | H69: Rebane | I69: 53 | J69: 80 | K69: 4240 | L69: 9
B70: P218 | C70: 2013-09-24 | D70: Varblane | E70: Harju | F70: küte | G70: 3 | H70: Rebane | I70: 77 | J70: 38 | K70: 2926 | L70: 9
B71: P060 | C71: 2013-03-13 | D71: Varblane | E71: Harju | F71: lepp | G71: 2 | H71: Karu | I71: 46 | J71: 59 | K71: 2714 | L71: 3
B72: P214 | C72: 2013-09-21 | D72: Varblane | E72: Harju | F72: lepp | G72: 1 | H72: Jänes | I72: 58 | J72: 65 | K72: 3770 | L72: 9
B73: P274 | C73: 2013-12-01 | D73: Varblane | E73: =VLOOKUP(P_ostja, o_tab, 2, 0) -> Harju | F73: lepp | G73: 1 | H73: Siil | I73: 67 | J73: =VLOOKUP(P_liik, P_hinnad, P_sort+1, 0) -> 65 | K73: =P_hind * P_kogus -> 4355 | L73: =MONTH(P_kuupäev) -> 12
B74: P087 | C74: 2013-04-15 | D74: Varblane | E74: Harju | F74: mänd | G74: 1 | H74: Hunt | I74: 69 | J74: 75 | K74: 5175 | L74: 4
B75: P104 | C75: 2013-04-30 | D75: Varblane | E75: Harju | F75: mänd | G75: 1 | H75: Ilves | I75: 25 | J75: 75 | K75: 1875 | L75: 4
B76: P172 | C76: 2013-07-30 | D76: Varblane | E76: Harju | F76: mänd | G76: 2 | H76: Hunt | I76: 73 | J76: 68 | K76: 4964 | L76: 7
B77: P015 | C77: 2013-01-16 | D77: Varblane | E77: Harju | F77: saar | G77: 1 | H77: Hunt | I77: 40 | J77: 85 | K77: 3400 | L77: 1
B78: P083 | C78: 2013-04-10 | D78: Varblane | E78: Harju | F78: saar | G78: 1 | H78: Rebane | I78: 36 | J78: 85 | K78: 3060 | L78: 4
B79: P102 | C79: 2013-04-28 | D79: Varblane | E79: Harju | F79: saar | G79: 2 | H79: Põder | I79: 48 | J79: 77 | K79: 3696 | L79: 4
B80: P200 | C80: 2013-08-31 | D80: Varblane | E80: Harju | F80: tamm | G80: 1 | H80: Rebane | I80: 36 | J80: 110 | K80: 3960 | L80: 8
B81: P015 | C81: 2013-01-16 | D81: Varblane | E81: Harju | F81: vaher | G81: 1 | H81: Hunt | I81: 27 | J81: 95 | K81: 2565 | L81: 1
B82: P062 | C82: 2013-03-18 | D82: Varblane | E82: Harju | F82: vaher | G82: 1 | H82: Jänes | I82: 27 | J82: 95 | K82: 2565 | L82: 3
B83: P057 | C83: 2013-03-08 | D83: Ilves | E83: Lääne | F83: haab | G83: 1 | H83: Siil | I83: 13 | J83: 50 | K83: 650 | L83: 3
B84: P250 | C84: 2013-10-28 | D84: Ilves | E84: Lääne | F84: haab | G84: 3 | H84: Hunt | I84: 59 | J84: 40 | K84: 2360 | L84: 10
B85: P269 | C85: 2013-11-27 | D85: Ilves | E85: Lääne | F85: haab | G85: 3 | H85: Karu | I85: 23 | J85: 40 | K85: 920 | L85: 11
B86: P016 | C86: 2013-01-17 | D86: Ilves | E86: Lääne | F86: kask | G86: 1 | H86: Hunt | I86: 13 | J86: 70 | K86: 910 | L86: 1
B87: P245 | C87: 2013-10-23 | D87: Ilves | E87: Lääne | F87: kask | G87: 1 | H87: Karu | I87: 47 | J87: 70 | K87: 3290 | L87: 10
B88: P261 | C88: 2013-11-13 | D88: Ilves | E88: Lääne | F88: kask | G88: 3 | H88: Rebane | I88: 68 | J88: 56 | K88: 3808 | L88: 11
B89: P198 | C89: 2013-08-29 | D89: Ilves | E89: Lääne | F89: kuusk | G89: 3 | H89: Karu | I89: 70 | J89: 64 | K89: 4480 | L89: 8
B90: P241 | C90: 2013-10-20 | D90: Ilves | E90: Lääne | F90: kuusk | G90: 2 | H90: Siil | I90: 43 | J90: 72 | K90: 3096 | L90: 10
B91: P241 | C91: 2013-10-20 | D91: Ilves | E91: Lääne | F91: kuusk | G91: 2 | H91: Siil | I91: 43 | J91: 72 | K91: 3096 | L91: 10
B92: P245 | C92: 2013-10-23 | D92: Ilves | E92: Lääne | F92: kuusk | G92: 3 | H92: Karu | I92: 36 | J92: 64 | K92: 2304 | L92: 10
B93: P250 | C93: 2013-10-28 | D93: Ilves | E93: Lääne | F93: küte | G93: 1 | H93: Hunt | I93: 56 | J93: 47 | K93: 2632 | L93: 10
B94: P267 | C94: 2013-11-22 | D94: Ilves | E94: Lääne | F94: küte | G94: 1 | H94: Hunt | I94: 76 | J94: 47 | K94: 3572 | L94: 11
B95: P267 | C95: 2013-11-22 | D95: Ilves | E95: Lääne | F95: küte | G95: 2 | H95: Hunt | I95: 13 | J95: 42 | K95: 546 | L95: 11
B96: P143 | C96: 2013-06-15 | D96: Ilves | E96: Lääne | F96: lepp | G96: 2 | H96: Ilves | I96: 12 | J96: 59 | K96: 708 | L96: 6
B97: P182 | C97: 2013-08-13 | D97: Ilves | E97: Lääne | F97: lepp | G97: 1 | H97: Karu | I97: 36 | J97: 65 | K97: 2340 | L97: 8
B98: P261 | C98: 2013-11-13 | D98: Ilves | E98: Lääne | F98: lepp | G98: 2 | H98: Rebane | I98: 13 | J98: 59 | K98: 767 | L98: 11
B99: P267 | C99: 2013-11-22 | D99: Ilves | E99: Lääne | F99: lepp | G99: 1 | H99: Hunt | I99: 79 | J99: 65 | K99: 5135 | L99: 11
B100: P057 | C100: 2013-03-08 | D100: Ilves | E100: Lääne | F100: mänd | G100: 2 | H100: Siil | I100: 22 | J100: 68 | K100: 1496 | L100: 3
B101: P143 | C101: 2013-06-15 | D101: Ilves | E101: Lääne | F101: mänd | G101: 2 | H101: Ilves | I101: 72 | J101: 68 | K101: 4896 | L101: 6
B102: P152 | C102: 2013-07-01 | D102: Ilves | E102: Lääne | F102: mänd | G102: 1 | H102: Ilves | I102: 15 | J102: 75 | K102: 1125 | L102: 7
B103: P245 | C103: 2013-10-23 | D103: Ilves | E103: Lääne | F103: saar | G103: 3 | H103: Karu | I103: 43 | J103: 68 | K103: 2924 | L103: 10
B104: P267 | C104: 2013-11-22 | D104: Ilves | E104: Lääne | F104: saar | G104: 1 | H104: Hunt | I104: 34 | J104: 85 | K104: 2890 | L104: 11
B105: P269 | C105: 2013-11-27 | D105: Ilves | E105: Lääne | F105: saar | G105: 2 | H105: Karu | I105: 32 | J105: 77 | K105: 2464 | L105: 11
B106: P016 | C106: 2013-01-17 | D106: Ilves | E106: Lääne | F106: tamm | G106: 2 | H106: Hunt | I106: 31 | J106: 99 | K106: 3069 | L106: 1
B107: P032 | C107: 2013-02-03 | D107: Ilves | E107: Lääne | F107: vaher | G107: 2 | H107: Karu | I107: 26 | J107: 86 | K107: 2236 | L107: 2
B108: P207 | C108: 2013-09-14 | D108: Ilves | E108: Lääne | F108: vaher | G108: 3 | H108: Rebane | I108: 10 | J108: 76 | K108: 760 | L108: 9
B109: P139 | C109: 2013-06-11 | D109: Karu | E109: Lääne | F109: kask | G109: 1 | H109: Põder | I109: 72 | J109: 70 | K109: 5040 | L109: 6
B110: P170 | C110: 2013-07-28 | D110: Karu | E110: Lääne | F110: kask | G110: 1 | H110: Ilves | I110: 70 | J110: 70 | K110: 4900 | L110: 7
B111: P170 | C111: 2013-07-28 | D111: Karu | E111: Lääne | F111: kask | G111: 2 | H111: Ilves | I111: 44 | J111: 63 | K111: 2772 | L111: 7
B112: P275 | C112: 2013-12-01 | D112: Karu | E112: Lääne | F112: kuusk | G112: 1 | H112: Hunt | I112: 47 | J112: 80 | K112: 3760 | L112: 12
B113: P280 | C113: 2013-12-09 | D113: Karu | E113: Lääne | F113: kuusk | G113: 2 | H113: Põder | I113: 33 | J113: 72 | K113: 2376 | L113: 12
B114: P004 | C114: 2013-01-04 | D114: Karu | E114: Lääne | F114: küte | G114: 1 | H114: Siil | I114: 12 | J114: 47 | K114: 564 | L114: 1
B115: P010 | C115: 2013-01-09 | D115: Karu | E115: Lääne | F115: küte | G115: 2 | H115: Hunt | I115: 6 | J115: 42 | K115: 252 | L115: 1
B116: P210 | C116: 2013-09-17 | D116: Karu | E116: Lääne | F116: küte | G116: 1 | H116: Jänes | I116: 16 | J116: 47 | K116: 752 | L116: 9
B117: P275 | C117: 2013-12-01 | D117: Karu | E117: Lääne | F117: küte | G117: 2 | H117: Hunt | I117: 17 | J117: 42 | K117: 714 | L117: 12
B118: P098 | C118: 2013-04-25 | D118: Karu | E118: Lääne | F118: lepp | G118: 2 | H118: Siil | I118: 65 | J118: 59 | K118: 3835 | L118: 4
B119: P139 | C119: 2013-06-11 | D119: Karu | E119: Lääne | F119: lepp | G119: 2 | H119: Põder | I119: 9 | J119: 59 | K119: 531 | L119: 6
B120: P186 | C120: 2013-08-19 | D120: Karu | E120: Lääne | F120: lepp | G120: 1 | H120: Rebane | I120: 67 | J120: 65 | K120: 4355 | L120: 8
B121: P239 | C121: 2013-10-18 | D121: Karu | E121: Lääne | F121: lepp | G121: 2 | H121: Ilves | I121: 37 | J121: 59 | K121: 2183 | L121: 10
B122: P275 | C122: 2013-12-01 | D122: Karu | E122: Lääne | F122: lepp | G122: 2 | H122: Hunt | I122: 8 | J122: 59 | K122: 472 | L122: 12
B123: P286 | C123: 2013-12-20 | D123: Karu | E123: Lääne | F123: lepp | G123: 1 | H123: Karu | I123: 26 | J123: 65 | K123: 1690 | L123: 12
B124: P010 | C124: 2013-01-09 | D124: Karu | E124: Lääne | F124: mänd | G124: 1 | H124: Hunt | I124: 55 | J124: 75 | K124: 4125 | L124: 1
B125: P010 | C125: 2013-01-09 | D125: Karu | E125: Lääne | F125: mänd | G125: 2 | H125: Hunt | I125: 39 | J125: 68 | K125: 2652 | L125: 1
B126: P031 | C126: 2013-02-02 | D126: Karu | E126: Lääne | F126: mänd | G126: 1 | H126: Jänes | I126: 53 | J126: 75 | K126: 3975 | L126: 2
B127: P213 | C127: 2013-09-21 | D127: Karu | E127: Lääne | F127: mänd | G127: 2 | H127: Rebane | I127: 59 | J127: 68 | K127: 4012 | L127: 9
B128: P213 | C128: 2013-09-21 | D128: Karu | E128: Lääne | F128: mänd | G128: 2 | H128: Rebane | I128: 24 | J128: 68 | K128: 1632 | L128: 9
B129: P213 | C129: 2013-09-21 | D129: Karu | E129: Lääne | F129: saar | G129: 3 | H129: Rebane | I129: 59 | J129: 68 | K129: 4012 | L129: 9
B130: P228 | C130: 2013-10-07 | D130: Karu | E130: Lääne | F130: saar | G130: 1 | H130: Jänes | I130: 12 | J130: 85 | K130: 1020 | L130: 10
B131: P170 | C131: 2013-07-28 | D131: Karu | E131: Lääne | F131: tamm | G131: 1 | H131: Ilves | I131: 19 | J131: 110 | K131: 2090 | L131: 7
B132: P004 | C132: 2013-01-04 | D132: Karu | E132: Lääne | F132: vaher | G132: 1 | H132: Siil | I132: 39 | J132: 95 | K132: 3705 | L132: 1
B133: P281 | C133: 2013-12-10 | D133: Kuusk | E133: Lääne | F133: haab | G133: 1 | H133: Karu | I133: 34 | J133: 50 | K133: 1700 | L133: 12
B134: P092 | C134: 2013-04-19 | D134: Kuusk | E134: Lääne | F134: kask | G134: 1 | H134: Jänes | I134: 51 | J134: 70 | K134: 3570 | L134: 4
B135: P227 | C135: 2013-10-07 | D135: Kuusk | E135: Lääne | F135: kask | G135: 1 | H135: Ilves | I135: 51 | J135: 70 | K135: 3570 | L135: 10
B136: P262 | C136: 2013-11-15 | D136: Kuusk | E136: Lääne | F136: kask | G136: 1 | H136: Siil | I136: 73 | J136: 70 | K136: 5110 | L136: 11
B137: P110 | C137: 2013-05-06 | D137: Kuusk | E137: =VLOOKUP(P_ostja, o_tab, 2, 0) -> Lääne | F137: küte | G137: 1 | H137: Rebane | I137: 12 | J137: =VLOOKUP(P_liik, P_hinnad, P_sort+1, 0) -> 47 | K137: =P_hind * P_kogus -> 564 | L137: =MONTH(P_kuupäev) -> 5
B138: P281 | C138: 2013-12-10 | D138: Kuusk | E138: Lääne | F138: küte | G138: 1 | H138: Karu | I138: 54 | J138: 47 | K138: 2538 | L138: 12
B139: P092 | C139: 2013-04-19 | D139: Kuusk | E139: Lääne | F139: lepp | G139: 2 | H139: Jänes | I139: 52 | J139: 59 | K139: 3068 | L139: 4
B140: P141 | C140: 2013-06-13 | D140: Kuusk | E140: Lääne | F140: lepp | G140: 1 | H140: Karu | I140: 46 | J140: 65 | K140: 2990 | L140: 6
B141: P161 | C141: 2013-07-13 | D141: Kuusk | E141: Lääne | F141: mänd | G141: 1 | H141: Jänes | I141: 11 | J141: 75 | K141: 825 | L141: 7
B142: P281 | C142: 2013-12-10 | D142: Kuusk | E142: Lääne | F142: mänd | G142: 1 | H142: Karu | I142: 78 | J142: 75 | K142: 5850 | L142: 12
B143: P090 | C143: 2013-04-17 | D143: Kuusk | E143: Lääne | F143: saar | G143: 3 | H143: Rebane | I143: 41 | J143: 68 | K143: 2788 | L143: 4
B144: P262 | C144: 2013-11-15 | D144: Kuusk | E144: Lääne | F144: saar | G144: 1 | H144: Siil | I144: 71 | J144: 85 | K144: 6035 | L144: 11
B145: P227 | C145: 2013-10-07 | D145: Kuusk | E145: Lääne | F145: vaher | G145: 1 | H145: Ilves | I145: 61 | J145: 95 | K145: 5795 | L145: 10
B146: P271 | C146: 2013-11-29 | D146: Kass | E146: Paide | F146: kuusk | G146: 3 | H146: Ilves | I146: 60 | J146: 64 | K146: 3840 | L146: 11
B147: P178 | C147: 2013-08-05 | D147: Kass | E147: Paide | F147: mänd | G147: 1 | H147: Jänes | I147: 48 | J147: 75 | K147: 3600 | L147: 8
B148: P243 | C148: 2013-10-21 | D148: Kass | E148: Paide | F148: mänd | G148: 1 | H148: Ilves | I148: 62 | J148: 75 | K148: 4650 | L148: 10
B149: P243 | C149: 2013-10-21 | D149: Kass | E149: Paide | F149: mänd | G149: 3 | H149: Ilves | I149: 62 | J149: 60 | K149: 3720 | L149: 10
B150: P246 | C150: 2013-10-23 | D150: Kass | E150: Paide | F150: mänd | G150: 1 | H150: Jänes | I150: 26 | J150: 75 | K150: 1950 | L150: 10
B151: P193 | C151: 2013-08-25 | D151: Kass | E151: Paide | F151: saar | G151: 2 | H151: Hunt | I151: 16 | J151: 77 | K151: 1232 | L151: 8
B152: P271 | C152: 2013-11-29 | D152: Kass | E152: Paide | F152: saar | G152: 1 | H152: Ilves | I152: 52 | J152: 85 | K152: 4420 | L152: 11
B153: P069 | C153: 2013-03-24 | D153: Kass | E153: Paide | F153: tamm | G153: 2 | H153: Jänes | I153: 23 | J153: 99 | K153: 2277 | L153: 3
B154: P193 | C154: 2013-08-25 | D154: Kass | E154: Paide | F154: tamm | G154: 1 | H154: Hunt | I154: 11 | J154: 110 | K154: 1210 | L154: 8
B155: P229 | C155: 2013-10-08 | D155: Kass | E155: Paide | F155: vaher | G155: 2 | H155: Siil | I155: 20 | J155: 86 | K155: 1720 | L155: 10
B156: P085 | C156: 2013-04-14 | D156: Lepik | E156: Paide | F156: haab | G156: 2 | H156: Karu | I156: 75 | J156: 45 | K156: 3375 | L156: 4
B157: P039 | C157: 2013-02-18 | D157: Lepik | E157: Paide | F157: kask | G157: 3 | H157: Hunt | I157: 62 | J157: 56 | K157: 3472 | L157: 2
B158: P195 | C158: 2013-08-27 | D158: Lepik | E158: Paide | F158: kuusk | G158: 1 | H158: Hunt | I158: 20 | J158: 80 | K158: 1600 | L158: 8
B159: P012 | C159: 2013-01-12 | D159: Lepik | E159: Paide | F159: küte | G159: 1 | H159: Jänes | I159: 71 | J159: 47 | K159: 3337 | L159: 1
B160: P122 | C160: 2013-05-17 | D160: Lepik | E160: Paide | F160: küte | G160: 3 | H160: Ilves | I160: 13 | J160: 38 | K160: 494 | L160: 5
B161: P249 | C161: 2013-10-27 | D161: Lepik | E161: Paide | F161: küte | G161: 1 | H161: Ilves | I161: 78 | J161: 47 | K161: 3666 | L161: 10
B162: P052 | C162: 2013-03-02 | D162: Lepik | E162: Paide | F162: lepp | G162: 3 | H162: Ilves | I162: 65 | J162: 52 | K162: 3380 | L162: 3
B163: P293 | C163: 2013-12-28 | D163: Lepik | E163: Paide | F163: lepp | G163: 2 | H163: Ilves | I163: 45 | J163: 59 | K163: 2655 | L163: 12
B164: P034 | C164: 2013-02-05 | D164: Lepik | E164: Paide | F164: mänd | G164: 1 | H164: Siil | I164: 30 | J164: 75 | K164: 2250 | L164: 2
B165: P122 | C165: 2013-05-17 | D165: Lepik | E165: Paide | F165: mänd | G165: 2 | H165: Ilves | I165: 76 | J165: 68 | K165: 5168 | L165: 5
B166: P158 | C166: 2013-07-10 | D166: Lepik | E166: Paide | F166: mänd | G166: 1 | H166: Siil | I166: 23 | J166: 75 | K166: 1725 | L166: 7
B167: P195 | C167: 2013-08-27 | D167: Lepik | E167: Paide | F167: mänd | G167: 3 | H167: Hunt | I167: 43 | J167: 60 | K167: 2580 | L167: 8
B168: P195 | C168: 2013-08-27 | D168: Lepik | E168: Paide | F168: mänd | G168: 1 | H168: Hunt | I168: 12 | J168: 75 | K168: 900 | L168: 8
B169: P268 | C169: 2013-11-22 | D169: Lepik | E169: Paide | F169: mänd | G169: 2 | H169: Põder | I169: 41 | J169: 68 | K169: 2788 | L169: 11
B170: P051 | C170: 2013-03-02 | D170: Lepik | E170: Paide | F170: saar | G170: 3 | H170: Karu | I170: 63 | J170: 68 | K170: 4284 | L170: 3
B171: P034 | C171: 2013-02-05 | D171: Lepik | E171: Paide | F171: tamm | G171: 1 | H171: Siil | I171: 15 | J171: 110 | K171: 1650 | L171: 2
B172: P085 | C172: 2013-04-14 | D172: Lepik | E172: Paide | F172: vaher | G172: 1 | H172: Karu | I172: 13 | J172: 95 | K172: 1235 | L172: 4
B173: P293 | C173: 2013-12-28 | D173: Lepik | E173: Paide | F173: vaher | G173: 1 | H173: Ilves | I173: 21 | J173: 95 | K173: 1995 | L173: 12
B174: P095 | C174: 2013-04-21 | D174: Haab | E174: Pärnu | F174: haab | G174: 1 | H174: Karu | I174: 41 | J174: 50 | K174: 2050 | L174: 4
B175: P221 | C175: 2013-09-27 | D175: Haab | E175: Pärnu | F175: haab | G175: 3 | H175: Hunt | I175: 44 | J175: 40 | K175: 1760 | L175: 9
B176: P230 | C176: 2013-10-09 | D176: Haab | E176: Pärnu | F176: haab | G176: 2 | H176: Põder | I176: 70 | J176: 45 | K176: 3150 | L176: 10
B177: P002 | C177: 2013-01-03 | D177: Haab | E177: Pärnu | F177: kask | G177: 1 | H177: Karu | I177: 75 | J177: 70 | K177: 5250 | L177: 1
B178: P095 | C178: 2013-04-21 | D178: Haab | E178: Pärnu | F178: kuusk | G178: 1 | H178: Karu | I178: 62 | J178: 80 | K178: 4960 | L178: 4
B179: P205 | C179: 2013-09-09 | D179: Haab | E179: Pärnu | F179: kuusk | G179: 3 | H179: Jänes | I179: 69 | J179: 64 | K179: 4416 | L179: 9
B180: P112 | C180: 2013-05-09 | D180: Haab | E180: Pärnu | F180: küte | G180: 1 | H180: Karu | I180: 18 | J180: 47 | K180: 846 | L180: 5
B181: P230 | C181: 2013-10-09 | D181: Haab | E181: Pärnu | F181: küte | G181: 1 | H181: Põder | I181: 30 | J181: 47 | K181: 1410 | L181: 10
B182: P080 | C182: 2013-04-06 | D182: Haab | E182: Pärnu | F182: mänd | G182: 3 | H182: Ilves | I182: 34 | J182: 60 | K182: 2040 | L182: 4
B183: P095 | C183: 2013-04-21 | D183: Haab | E183: Pärnu | F183: mänd | G183: 2 | H183: Karu | I183: 21 | J183: 68 | K183: 1428 | L183: 4
B184: P221 | C184: 2013-09-27 | D184: Haab | E184: Pärnu | F184: mänd | G184: 1 | H184: Hunt | I184: 48 | J184: 75 | K184: 3600 | L184: 9
B185: P112 | C185: 2013-05-09 | D185: Haab | E185: Pärnu | F185: saar | G185: 2 | H185: Karu | I185: 10 | J185: 77 | K185: 770 | L185: 5
B186: P204 | C186: 2013-09-05 | D186: Haab | E186: Pärnu | F186: saar | G186: 2 | H186: Siil | I186: 19 | J186: 77 | K186: 1463 | L186: 9
B187: P002 | C187: 2013-01-03 | D187: Haab | E187: Pärnu | F187: vaher | G187: 1 | H187: Karu | I187: 10 | J187: 95 | K187: 950 | L187: 1
B188: P079 | C188: 2013-04-05 | D188: Juur | E188: Pärnu | F188: haab | G188: 1 | H188: Ilves | I188: 15 | J188: 50 | K188: 750 | L188: 4
B189: P082 | C189: 2013-04-09 | D189: Juur | E189: Pärnu | F189: haab | G189: 1 | H189: Siil | I189: 35 | J189: 50 | K189: 1750 | L189: 4
B190: P130 | C190: 2013-05-27 | D190: Juur | E190: Pärnu | F190: haab | G190: 1 | H190: Hunt | I190: 20 | J190: 50 | K190: 1000 | L190: 5
B191: P233 | C191: 2013-10-12 | D191: Juur | E191: Pärnu | F191: haab | G191: 1 | H191: Karu | I191: 35 | J191: 50 | K191: 1750 | L191: 10
B192: P044 | C192: 2013-02-25 | D192: Juur | E192: Pärnu | F192: kask | G192: 1 | H192: Hunt | I192: 37 | J192: 70 | K192: 2590 | L192: 2
B193: P253 | C193: 2013-10-31 | D193: Juur | E193: Pärnu | F193: kuusk | G193: 2 | H193: Ilves | I193: 28 | J193: 72 | K193: 2016 | L193: 10
B194: P115 | C194: 2013-05-11 | D194: Juur | E194: Pärnu | F194: küte | G194: 1 | H194: Ilves | I194: 71 | J194: 47 | K194: 3337 | L194: 5
B195: P130 | C195: 2013-05-27 | D195: Juur | E195: Pärnu | F195: küte | G195: 2 | H195: Hunt | I195: 11 | J195: 42 | K195: 462 | L195: 5
B196: P149 | C196: 2013-06-24 | D196: Juur | E196: Pärnu | F196: lepp | G196: 1 | H196: Põder | I196: 32 | J196: 65 | K196: 2080 | L196: 6
B197: P177 | C197: 2013-08-05 | D197: Juur | E197: Pärnu | F197: lepp | G197: 3 | H197: Rebane | I197: 58 | J197: 52 | K197: 3016 | L197: 8
B198: P006 | C198: 2013-01-06 | D198: Juur | E198: Pärnu | F198: mänd | G198: 2 | H198: Rebane | I198: 37 | J198: 68 | K198: 2516 | L198: 1
B199: P044 | C199: 2013-02-25 | D199: Juur | E199: Pärnu | F199: mänd | G199: 3 | H199: Hunt | I199: 33 | J199: 60 | K199: 1980 | L199: 2
B200: P235 | C200: 2013-10-14 | D200: Juur | E200: Pärnu | F200: mänd | G200: 1 | H200: Karu | I200: 59 | J200: 75 | K200: 4425 | L200: 10
B201: P235 | C201: 2013-10-14 | D201: Juur | E201: =VLOOKUP(P_ostja, o_tab, 2, 0) -> Pärnu | F201: saar | G201: 3 | H201: Karu | I201: 29 | J201: =VLOOKUP(P_liik, P_hinnad, P_sort+1, 0) -> 68 | K201: =P_hind * P_kogus -> 1972 | L201: =MONTH(P_kuupäev) -> 10
B202: P253 | C202: 2013-10-31 | D202: Juur | E202: Pärnu | F202: saar | G202: 3 | H202: Ilves | I202: 60 | J202: 68 | K202: 4080 | L202: 10
B203: P064 | C203: 2013-03-20 | D203: Juur | E203: Pärnu | F203: tamm | G203: 1 | H203: Rebane | I203: 35 | J203: 110 | K203: 3850 | L203: 3
B204: P064 | C204: 2013-03-20 | D204: Juur | E204: Pärnu | F204: vaher | G204: 2 | H204: Rebane | I204: 31 | J204: 86 | K204: 2666 | L204: 3
... 233 more rows

Sheet Sort
E1: veeb | F1: klipp Sortimine | J1: Harjutustabelid
J2: Töötajad | K2: Puidu müük
I4: Arvutite müükide arvestus
I6: Kuupäev | J6: Linn | K6: Arvuti | L6: Arv | M6: Hind | N6: Maksumus
I7: 2013-01-02 | J7: Tallinn | K7: Frodo | L7: 2 | M7: =VLOOKUP(Arvuti, Arvutid, 6, 0) -> 870 | N7: =Hind * Arv -> 1740
I8: 2013-01-02 | J8: Valga | K8: Balrog | L8: 1 | M8: 419 | N8: 419
I9: 2013-01-03 | J9: Tallinn | K9: Aragorn | L9: 3 | M9: 499 | N9: 1497
I10: 2013-01-03 | J10: Tallinn | K10: Balrog | L10: 3 | M10: 419 | N10: 1257
I11: 2013-01-03 | J11: Võru | K11: Gandalf | L11: 2 | M11: 849 | N11: 1698
I12: 2013-01-04 | J12: Tallinn | K12: Eldar | L12: 3 | M12: 465 | N12: 1395
I13: 2013-01-04 | J13: Tartu | K13: Balrog | L13: 5 | M13: 419 | N13: 2095
I14: 2013-01-07 | J14: Pärnu | K14: Eldar | L14: 3 | M14: 465 | N14: 1395
I15: 2013-01-07 | J15: Tallinn | K15: Faram | L15: 1 | M15: 599 | N15: 599
I16: 2013-01-07 | J16: Valga | K16: Balrog | L16: 6 | M16: 419 | N16: 2514
I17: 2013-01-07 | J17: Valga | K17: Frodo | L17: 1 | M17: 870 | N17: 870
I18: 2013-01-09 | J18: Tallinn | K18: Grimbold | L18: 6 | M18: 1149 | N18: 6894
I19: 2013-01-10 | J19: Pärnu | K19: Elend | L19: 1 | M19: 920 | N19: 920
I20: 2013-01-10 | J20: Pärnu | K20: Rohan | L20: 4 | M20: 340 | N20: 1360
I21: 2013-01-10 | J21: Tartu | K21: Sauron | L21: 2 | M21: 339 | N21: 678
I22: 2013-01-11 | J22: Tallinn | K22: Marvin | L22: 1 | M22: 370 | N22: 370
I23: 2013-01-11 | J23: Tartu | K23: Balrog | L23: 2 | M23: 419 | N23: 838
I24: 2013-01-11 | J24: Valga | K24: Aragorn | L24: 1 | M24: 499 | N24: 499
I25: 2013-01-14 | J25: Pärnu | K25: Gandalf | L25: 3 | M25: 849 | N25: 2547
I26: 2013-01-14 | J26: Tartu | K26: Frodo | L26: 4 | M26: 870 | N26: 3480
I27: 2013-01-14 | J27: Valga | K27: Kalvar | L27: 2 | M27: 699 | N27: 1398
I28: 2013-01-16 | J28: Tallinn | K28: Arven | L28: 5 | M28: 369 | N28: 1845
I29: 2013-01-17 | J29: Tallinn | K29: Kalvar | L29: 7 | M29: 699 | N29: 4893
I30: 2013-01-17 | J30: Tartu | K30: Aragorn | L30: 3 | M30: 499 | N30: 1497
I31: 2013-01-18 | J31: Pärnu | K31: Eldar | L31: 1 | M31: 465 | N31: 465
I32: 2013-01-18 | J32: Tallinn | K32: Aragorn | L32: 1 | M32: 499 | N32: 499
I33: 2013-01-19 | J33: Tallinn | K33: Faram | L33: 3 | M33: 599 | N33: 1797
I34: 2013-01-19 | J34: Tartu | K34: Kalvar | L34: 1 | M34: 699 | N34: 699
I35: 2013-01-19 | J35: Võru | K35: Elend | L35: 5 | M35: 920 | N35: 4600
I36: 2013-01-20 | J36: Tallinn | K36: Elend | L36: 2 | M36: 920 | N36: 1840
I37: 2013-01-20 | J37: Võru | K37: Sauron | L37: 3 | M37: 339 | N37: 1017
I38: 2013-01-21 | J38: Pärnu | K38: Arven | L38: 1 | M38: 369 | N38: 369
I39: 2013-01-25 | J39: Võru | K39: Sauron | L39: 1 | M39: 339 | N39: 339
I40: 2013-01-26 | J40: Pärnu | K40: Gandalf | L40: 2 | M40: 849 | N40: 1698

Sheet Päringud
E1: veeb

Sheet Filter
E1: veeb | F1: Klipp Autofilter | I1: Harjutustabelid
I2: töötajad | J2: puidu müük
B3: Filter - harilik filter ehk autofilter | N3: NB! Subtotal
I4: Arvutite müükide arvestus | L4: =SUBTOTAL(9, L7:L40) -> 90 | M4: =SUBTOTAL(1, M7:M40) -> 611.8529412 | N4: =SUBTOTAL(9, N7:N40) -> 54875
I6: Kuupäev | J6: Linn | K6: Arvuti | L6: Arv | M6: Hind | N6: Maksumus
I7: 2013-01-03 | J7: Tallinn | K7: Aragorn | L7: 2 | M7: =VLOOKUP(Arvuti, Arvutid, 6, 0) -> 499 | N7: =Hind*Arv -> 998
I8: 2013-01-03 | J8: Tallinn | K8: Balrog | L8: 3 | M8: 419 | N8: 1257
I9: 2013-01-09 | J9: Tallinn | K9: Grimbold | L9: 6 | M9: 1149 | N9: 6894
I10: 2013-01-04 | J10: Tallinn | K10: Eldar | L10: 3 | M10: 465 | N10: 1395
I11: 2013-01-07 | J11: Tallinn | K11: Faram | L11: 1 | M11: 599 | N11: 599
I12: 2013-01-02 | J12: Tallinn | K12: Frodo | L12: 2 | M12: 870 | N12: 1740
I13: 2013-01-11 | J13: Tallinn | K13: Frodo | L13: 1 | M13: 870 | N13: 870
I14: 2013-01-16 | J14: Tallinn | K14: Arven | L14: 5 | M14: 369 | N14: 1845
I15: 2013-01-07 | J15: Pärnu | K15: Eldar | L15: 3 | M15: 465 | N15: 1395
I16: 2013-01-17 | J16: Tallinn | K16: Balrog | L16: 7 | M16: 419 | N16: 2933
I17: 2013-01-26 | J17: Pärnu | K17: Gandalf | L17: 2 | M17: 849 | N17: 1698
I18: 2013-01-18 | J18: Tallinn | K18: Aragorn | L18: 1 | M18: 499 | N18: 499
I19: 2013-01-10 | J19: Pärnu | K19: Elend | L19: 1 | M19: 920 | N19: 920
I20: 2013-01-19 | J20: Tallinn | K20: Frodo | L20: 3 | M20: 870 | N20: 2610
I21: 2013-01-20 | J21: Tallinn | K21: Elend | L21: 2 | M21: 920 | N21: 1840
I22: 2013-01-10 | J22: Tartu | K22: Sauron | L22: 2 | M22: 339 | N22: 678
I23: 2013-01-11 | J23: Tartu | K23: Balrog | L23: 2 | M23: 419 | N23: 838
I24: 2013-01-14 | J24: Tartu | K24: Frodo | L24: 4 | M24: 870 | N24: 3480
I25: 2013-01-02 | J25: Valga | K25: Balrog | L25: 1 | M25: 419 | N25: 419
I26: 2013-01-14 | J26: Pärnu | K26: Gandalf | L26: 3 | M26: 849 | N26: 2547
I27: 2013-01-11 | J27: Valga | K27: Aragorn | L27: 1 | M27: 499 | N27: 499
I28: 2013-01-17 | J28: Tartu | K28: Aragorn | L28: 3 | M28: 499 | N28: 1497
I29: 2013-01-14 | J29: Valga | K29: Kalvar | L29: 2 | M29: 699 | N29: 1398
I30: 2013-01-07 | J30: Valga | K30: Balrog | L30: 6 | M30: 419 | N30: 2514
I31: 2013-01-07 | J31: Valga | K31: Frodo | L31: 1 | M31: 870 | N31: 870
I32: 2013-01-18 | J32: Pärnu | K32: Eldar | L32: 1 | M32: =VLOOKUP(Arvuti, Arvutid, 6, 0) -> 465 | N32: =Hind*Arv -> 465
I33: 2013-01-10 | J33: Pärnu | K33: Rohan | L33: 4 | M33: 340 | N33: 1360
I34: 2013-01-19 | J34: Tartu | K34: Kalvar | L34: 1 | M34: 699 | N34: 699
I35: 2013-01-03 | J35: Võru | K35: Gandalf | L35: 2 | M35: 849 | N35: 1698
I36: 2013-01-19 | J36: Võru | K36: Elend | L36: 5 | M36: 920 | N36: 4600
I37: 2013-01-20 | J37: Võru | K37: Sauron | L37: 3 | M37: 339 | N37: 1017
I38: 2013-01-21 | J38: Pärnu | K38: Arven | L38: 1 | M38: 369 | N38: 369
I39: 2013-01-25 | J39: Võru | K39: Sauron | L39: 1 | M39: 339 | N39: 339
I40: 2013-01-04 | J40: Tartu | K40: Balrog | L40: 5 | M40: 419 | N40: 2095

Sheet Aren_Filter
E1: veeb | F1: klipp Arendatud filter 1 | J1: Harjutustabelid:
D2: klipp Arendatud filter 2 | F2: klipp Arendatud filter 3 | J2: Töötajad | K2: Puidu müük
B5: Arvutite müükide arvestus
B7: Linn | D7: Linn | E7: Arvuti | G7: Maksumus
B8: Pärnu | D8: Tallinn | E8: Frodo | G8: >2000
B10: Linn | D10: Linn | E10: Arvuti | F10: Arv
B11: Tallinn | D11: Tallinn | E11: Balrog | F11: >1
B12: Tartu | D12: Tartu | E12: Balrog | F12: >1
B13: Võru
D14: Arvuti | E14: Kuupäev | F14: Kuupäev
B15: AM_AF | D15: Aragorn | E15: >=10.01.13 | F15: <=20.01.13
B17: Kuupäev | C17: Linn | D17: Arvuti | E17: Arv | F17: Hind | G17: Maksumus
B18: 2013-01-02 | C18: Tallinn | D18: Frodo | E18: 3 | F18: =VLOOKUP(Arvuti, Arvutid, 6, 0) -> 870 | G18: =Hind*Arv -> 2610
B19: 2013-01-02 | C19: Valga | D19: Balrog | E19: 1 | F19: 419 | G19: 419
B20: 2013-01-03 | C20: Võru | D20: Gandalf | E20: 2 | F20: 849 | G20: 1698
B21: 2013-01-03 | C21: Tallinn | D21: Balrog | E21: 3 | F21: 419 | G21: 1257
B22: 2013-01-03 | C22: Tallinn | D22: Aragorn | E22: 2 | F22: 499 | G22: 998
B23: 2013-01-04 | C23: Tartu | D23: Balrog | E23: 5 | F23: 419 | G23: 2095
B24: 2013-01-04 | C24: Tallinn | D24: Eldar | E24: 3 | F24: 465 | G24: 1395
B25: 2013-01-07 | C25: Valga | D25: Balrog | E25: 6 | F25: 419 | G25: 2514
B26: 2013-01-07 | C26: Pärnu | D26: Balrog | E26: 3 | F26: 419 | G26: 1257
B27: 2013-01-07 | C27: Valga | D27: Frodo | E27: 1 | F27: 870 | G27: 870
B28: 2013-01-07 | C28: Tallinn | D28: Frodo | E28: 1 | F28: 870 | G28: 870
B29: 2013-01-09 | C29: Tallinn | D29: Grimbold | E29: 6 | F29: 1149 | G29: 6894
B30: 2013-01-10 | C30: Pärnu | D30: Rohan | E30: 4 | F30: 340 | G30: 1360
B31: 2013-01-10 | C31: Pärnu | D31: Elend | E31: 1 | F31: 920 | G31: 920
B32: 2013-01-10 | C32: Tartu | D32: Sauron | E32: 2 | F32: 339 | G32: 678
B33: 2013-01-11 | C33: Tartu | D33: Balrog | E33: 2 | F33: 419 | G33: 838
B34: 2013-01-11 | C34: Tallinn | D34: Marvin | E34: 1 | F34: 370 | G34: 370
B35: 2013-01-11 | C35: Valga | D35: Aragorn | E35: 1 | F35: 499 | G35: 499
B36: 2013-01-14 | C36: Tartu | D36: Frodo | E36: 4 | F36: 870 | G36: 3480
B37: 2013-01-14 | C37: Pärnu | D37: Gandalf | E37: 3 | F37: 849 | G37: 2547
B38: 2013-01-14 | C38: Valga | D38: Kalvar | E38: 2 | F38: 699 | G38: 1398
B39: 2013-01-16 | C39: Tallinn | D39: Frodo | E39: 5 | F39: 870 | G39: 4350
B40: 2013-01-17 | C40: Tallinn | D40: Kalvar | E40: 7 | F40: 699 | G40: 4893
B41: 2013-01-17 | C41: Tartu | D41: Aragorn | E41: 3 | F41: 499 | G41: 1497
B42: 2013-01-18 | C42: Tallinn | D42: Aragorn | E42: 1 | F42: 499 | G42: 499
B43: 2013-01-18 | C43: Pärnu | D43: Eldar | E43: 1 | F43: 465 | G43: 465
B44: 2013-01-19 | C44: Võru | D44: Elend | E44: 5 | F44: 920 | G44: 4600
B45: 2013-01-19 | C45: Tallinn | D45: Faram | E45: 3 | F45: 599 | G45: 1797
B46: 2013-01-19 | C46: Tartu | D46: Kalvar | E46: 1 | F46: 699 | G46: 699
B47: 2013-01-20 | C47: Tallinn | D47: Elend | E47: 2 | F47: 920 | G47: 1840
B48: 2013-01-20 | C48: Võru | D48: Sauron | E48: 3 | F48: 339 | G48: 1017
B49: 2013-01-21 | C49: Pärnu | D49: Arven | E49: 1 | F49: 369 | G49: 369
B50: 2013-01-25 | C50: Võru | D50: Sauron | E50: 1 | F50: 339 | G50: 339
B51: 2013-01-26 | C51: Pärnu | D51: Gandalf | E51: 2 | F51: 849 | G51: 1698

Sheet Filter_PM_D
B2: Demo. Demo. Demo
B3: Puidu müük. Väljavõtete tegemine maakondade ja puidu liikide lõikes
B5: Maakond | C5: puidu liik | J5: =DSUM(PM, "P_kogus", Kriteerium) -> 1991 | K5: =DSUM(PM, "P_maks",Kriteerium) -> 123774
B6: P_maa | C6: P_liik
B7: Viljandi
E9: Kokku: | F9: =SUM(F13:F203) -> 1991 | G9: =SUM(G13:G203) -> 123774
B11: Kuupäev | C11: Arve | D11: Müüja | E11: Ostja | F11: Kogus | G11: Maksumus
B12: P_kuupäev | C12: P_arve | D12: P_müüja | E12: P_ostja | F12: P_kogus | G12: P_maks
B13: 2013-01-11 | C13: P011 | D13: Karu | E13: Lepp | F13: 24 | G13: 1920
B14: 2013-01-11 | C14: P011 | D14: Jänes | E14: Lepp | F14: 16 | G14: 1216
B15: 2013-01-25 | C15: P022 | D15: Karu | E15: Kuusik | F15: 23 | G15: 1610
B16: 2013-01-25 | C16: P022 | D16: Karu | E16: Kuusik | F16: 16 | G16: 1120
B17: 2013-01-25 | C17: P022 | D17: Karu | E17: Kuusik | F17: 20 | G17: 840
B18: 2013-01-25 | C18: P023 | D18: Jänes | E18: Kuusik | F18: 24 | G18: 1920
B19: 2013-01-27 | C19: P024 | D19: Karu | E19: Lepp | F19: 51 | G19: 5049
B20: 2013-01-27 | C20: P025 | D20: Siil | E20: Lepp | F20: 15 | G20: 1200
B21: 2013-02-13 | C21: P036 | D21: Karu | E21: Luik | F21: 72 | G21: 4608
B22: 2013-02-13 | C22: P036 | D22: Ilves | E22: Luik | F22: 53 | G22: 3445
B23: 2013-02-17 | C23: P037 | D23: Jänes | E23: Kuusik | F23: 32 | G23: 1440
B24: 2013-02-27 | C24: P047 | D24: Hunt | E24: Kuusik | F24: 28 | G24: 1176
B25: 2013-03-02 | C25: P053 | D25: Karu | E25: Lepp | F25: 27 | G25: 1350
B26: 2013-03-02 | C26: P053 | D26: Hunt | E26: Lepp | F26: 11 | G26: 1045
B27: 2013-03-05 | C27: P054 | D27: Karu | E27: Lepp | F27: 177 | G27: 7434
B28: 2013-03-05 | C28: P054 | D28: Karu | E28: Lepp | F28: 37 | G28: 2183
B29: 2013-03-15 | C29: P061 | D29: Siil | E29: Lepp | F29: 23 | G29: 1472
B30: 2013-03-26 | C30: P072 | D30: Ilves | E30: Lepp | F30: 8 | G30: 680
B31: 2013-04-02 | C31: P075 | D31: Ilves | E31: Lepp | F31: 22 | G31: 1386
B32: 2013-04-02 | C32: P075 | D32: Ilves | E32: Lepp | F32: 35 | G32: 2975
B33: 2013-04-25 | C33: P099 | D33: Hunt | E33: Kuusik | F33: 31 | G33: 2170
B34: 2013-04-25 | C34: P099 | D34: Hunt | E34: Kuusik | F34: 36 | G34: 2340
B35: 2013-05-03 | C35: P106 | D35: Ilves | E35: Lepp | F35: 45 | G35: 1800
B36: 2013-05-03 | C36: P106 | D36: Ilves | E36: Lepp | F36: 31 | G36: 1302
B37: 2013-05-03 | C37: P107 | D37: Rebane | E37: Lepp | F37: 17 | G37: 1020
B38: 2013-05-15 | C38: P119 | D38: Karu | E38: Lepp | F38: 19 | G38: 1197
B39: 2013-05-15 | C39: P120 | D39: Siil | E39: Luik | F39: 33 | G39: 1716
B40: 2013-05-18 | C40: P124 | D40: Põder | E40: Luik | F40: 32 | G40: 3520
B41: 2013-05-19 | C41: P125 | D41: Põder | E41: Lepp | F41: 65 | G41: 2600
B42: 2013-06-04 | C42: P134 | D42: Siil | E42: Lepp | F42: 31 | G42: 2480
B43: 2013-06-10 | C43: P138 | D43: Hunt | E43: Lepp | F43: 54 | G43: 4320
B44: 2013-06-10 | C44: P138 | D44: Hunt | E44: Lepp | F44: 25 | G44: 1900
B45: 2013-07-06 | C45: P154 | D45: Rebane | E45: Luik | F45: 11 | G45: 968
B46: 2013-07-09 | C46: P157 | D46: Hunt | E46: Kuusik | F46: 11 | G46: 495
B47: 2013-07-09 | C47: P157 | D47: Hunt | E47: Kuusik | F47: 25 | G47: 2000
B48: 2013-08-01 | C48: P174 | D48: Hunt | E48: Luik | F48: 12 | G48: 960
B49: 2013-08-21 | C49: P188 | D49: Hunt | E49: Luik | F49: 61 | G49: 4392
B50: 2013-08-22 | C50: P189 | D50: Rebane | E50: Kuusik | F50: 41 | G50: 2132
B51: 2013-08-22 | C51: P189 | D51: Rebane | E51: Kuusik | F51: 10 | G51: 650
B52: 2013-08-24 | C52: P192 | D52: Põder | E52: Kuusik | F52: 36 | G52: 3564
B53: 2013-09-04 | C53: P203 | D53: Põder | E53: Lepp | F53: 13 | G53: 975
B54: 2013-09-12 | C54: P206 | D54: Ilves | E54: Kuusik | F54: 70 | G54: 3150
B55: 2013-09-12 | C55: P206 | D55: Ilves | E55: Kuusik | F55: 32 | G55: 2240
B56: 2013-09-22 | C56: P215 | D56: Ilves | E56: Lepp | F56: 79 | G56: 4977
B57: 2013-09-22 | C57: P215 | D57: Ilves | E57: Lepp | F57: 47 | G57: 3290
B58: 2013-10-05 | C58: P225 | D58: Siil | E58: Lepp | F58: 29 | G58: 1711
B59: 2013-10-10 | C59: P231 | D59: Karu | E59: Luik | F59: 46 | G59: 2070
B60: 2013-10-10 | C60: P231 | D60: Karu | E60: Luik | F60: 71 | G60: 2982
B61: 2013-11-18 | C61: P264 | D61: Ilves | E61: Kuusik | F61: 26 | G61: 1040
B62: 2013-11-18 | C62: P264 | D62: Ilves | E62: Kuusik | F62: 32 | G62: 2400
B63: 2013-11-28 | C63: P270 | D63: Rebane | E63: Kuusik | F63: 27 | G63: 1404
B64: 2013-12-05 | C64: P278 | D64: Jänes | E64: Lepp | F64: 55 | G64: 3520
B65: 2013-12-27 | C65: P292 | D65: Hunt | E65: Lepp | F65: 42 | G65: 2100
B66: 2013-12-27 | C66: P292 | D66: Hunt | E66: Lepp | F66: 65 | G66: 4875
B67: 2013-12-30 | C67: P295 | D67: Karu | E67: Lepp | F67: 17 | G67: 1445

Sheet Kokku
E1: veeb

Sheet Vahekokku
E1: veeb | F1: Klipp Vahekokkuvõtted | J1: Harjutustabelid
J2: töötajad | K2: puidu müük
B4: Arvutite müükide arvestus
B6: Kuupäev | C6: Linn | D6: Arvuti | E6: Arv | F6: Hind | G6: Maksumus
B7: 2013-01-07 | C7: Pärnu | D7: Eldar | E7: 3 | F7: =VLOOKUP(Arvuti, Arvutid, 6, 0) -> 465 | G7: =Hind*Arv -> 1395
B8: 2013-01-10 | C8: Pärnu | D8: Elend | E8: 1 | F8: 920 | G8: 920
B9: 2013-01-10 | C9: Pärnu | D9: Rohan | E9: 4 | F9: 340 | G9: 1360
B10: 2013-01-14 | C10: Pärnu | D10: Gandalf | E10: 3 | F10: 849 | G10: 2547
B11: 2013-01-18 | C11: Pärnu | D11: Eldar | E11: 1 | F11: 465 | G11: 465
B12: 2013-01-21 | C12: Pärnu | D12: Arven | E12: 2 | F12: 369 | G12: 738
B13: 2013-01-26 | C13: Pärnu | D13: Gandalf | E13: 2 | F13: 849 | G13: 1698
B14: 2013-01-02 | C14: Tallinn | D14: Frodo | E14: 2 | F14: 870 | G14: 1740
B15: 2013-01-03 | C15: Tallinn | D15: Aragorn | E15: 2 | F15: 499 | G15: 998
B16: 2013-01-03 | C16: Tallinn | D16: Balrog | E16: 3 | F16: 419 | G16: 1257
B17: 2013-01-04 | C17: Tallinn | D17: Eldar | E17: 3 | F17: 465 | G17: 1395
B18: 2013-01-07 | C18: Tallinn | D18: Faram | E18: 1 | F18: 599 | G18: 599
B19: 2013-01-09 | C19: Tallinn | D19: Grimbold | E19: 6 | F19: 1149 | G19: 6894
B20: 2013-01-11 | C20: Tallinn | D20: Frodo | E20: 1 | F20: 870 | G20: 870
B21: 2013-01-16 | C21: Tallinn | D21: Arven | E21: 5 | F21: 369 | G21: 1845
B22: 2013-01-17 | C22: Tallinn | D22: Balrog | E22: 7 | F22: 419 | G22: 2933
B23: 2013-01-18 | C23: Tallinn | D23: Aragorn | E23: 1 | F23: 499 | G23: 499
B24: 2013-01-19 | C24: Tallinn | D24: Frodo | E24: 3 | F24: 870 | G24: 2610
B25: 2013-01-20 | C25: Tallinn | D25: Elend | E25: 2 | F25: 920 | G25: 1840
B26: 2013-01-04 | C26: Tartu | D26: Balrog | E26: 5 | F26: 419 | G26: 2095
B27: 2013-01-10 | C27: Tartu | D27: Sauron | E27: 2 | F27: 339 | G27: 678
B28: 2013-01-11 | C28: Tartu | D28: Balrog | E28: 2 | F28: 419 | G28: 838
B29: 2013-01-14 | C29: Tartu | D29: Frodo | E29: 4 | F29: 870 | G29: 3480
B30: 2013-01-17 | C30: Tartu | D30: Aragorn | E30: 3 | F30: 499 | G30: 1497
B31: 2013-01-19 | C31: Tartu | D31: Kalvar | E31: 1 | F31: 699 | G31: 699
B32: 2013-01-02 | C32: Valga | D32: Balrog | E32: 1 | F32: 419 | G32: 419
B33: 2013-01-07 | C33: Valga | D33: Balrog | E33: 6 | F33: 419 | G33: 2514
B34: 2013-01-07 | C34: Valga | D34: Frodo | E34: 1 | F34: 870 | G34: 870
B35: 2013-01-11 | C35: Valga | D35: Aragorn | E35: 1 | F35: 499 | G35: 499
B36: 2013-01-14 | C36: Valga | D36: Kalvar | E36: 2 | F36: 699 | G36: 1398
B37: 2013-01-03 | C37: Võru | D37: Gandalf | E37: 2 | F37: 849 | G37: 1698
B38: 2013-01-19 | C38: Võru | D38: Elend | E38: 5 | F38: 920 | G38: 4600
B39: 2013-01-20 | C39: Võru | D39: Sauron | E39: 3 | F39: 339 | G39: 1017
B40: 2013-01-25 | C40: Võru | D40: Sauron | E40: 1 | F40: 339 | G40: 339

Sheet Risttabelid
E1: veeb | F1: Klipp Risttabelid | J1: Harjutustabelid:
J2: Töötajad | K2: Puidu müük
I4: Arvutite müükide arvestus
I6: Kuupäev | J6: Linn | K6: Arvuti | L6: Arv | M6: Hind | N6: Maksumus
I7: 2013-01-02 | J7: Valga | K7: Balrog | L7: 2 | M7: =VLOOKUP(Arvuti, Arvutid, 6, 0) -> 419 | N7: =Hind*Arv -> 838
I8: 2013-01-03 | J8: Võru | K8: Gandalf | L8: 3 | M8: =VLOOKUP(Arvuti, Arvutid, 6, 0) -> 849 | N8: 2547
I9: 2013-01-03 | J9: Tallinn | K9: Aragorn | L9: 2 | M9: 499 | N9: 998
I10: 2013-01-03 | J10: Tallinn | K10: Balrog | L10: 3 | M10: 419 | N10: 1257
I11: 2013-01-09 | J11: Tallinn | K11: Grimbold | L11: 6 | M11: 1149 | N11: 6894
I12: 2013-01-19 | J12: Võru | K12: Elend | L12: 5 | M12: 920 | N12: 4600
I13: 2013-01-04 | J13: Tallinn | K13: Eldar | L13: 3 | M13: 465 | N13: 1395
I14: 2013-01-10 | J14: Tartu | K14: Sauron | L14: 2 | M14: 339 | N14: 678
I15: 2013-01-07 | J15: Pärnu | K15: Eldar | L15: 3 | M15: 465 | N15: 1395
I16: 2013-01-07 | J16: Tallinn | K16: Faram | L16: 1 | M16: 599 | N16: 599
I17: 2013-01-26 | J17: Pärnu | K17: Gandalf | L17: 2 | M17: 849 | N17: 1698
I18: 2013-01-11 | J18: Tartu | K18: Balrog | L18: 2 | M18: 419 | N18: 838
I19: 2013-01-10 | J19: Pärnu | K19: Elend | L19: 1 | M19: 920 | N19: 920
I20: 2013-01-02 | J20: Tallinn | K20: Frodo | L20: 2 | M20: 870 | N20: 1740
I21: 2013-01-11 | J21: Tallinn | K21: Frodo | L21: 1 | M21: 870 | N21: 870
I22: 2013-01-11 | J22: Valga | K22: Aragorn | L22: 1 | M22: 499 | N22: 499
I23: 2013-01-14 | J23: Tartu | K23: Frodo | L23: 4 | M23: 870 | N23: 3480
I24: 2013-01-16 | J24: Tallinn | K24: Arven | L24: 5 | M24: 369 | N24: 1845
I25: 2013-01-17 | J25: Tallinn | K25: Balrog | L25: 7 | M25: 419 | N25: 2933
I26: 2013-01-14 | J26: Pärnu | K26: Gandalf | L26: 3 | M26: 849 | N26: 2547
I27: 2013-01-14 | J27: Valga | K27: Kalvar | L27: 2 | M27: 699 | N27: 1398
I28: 2013-01-17 | J28: Tartu | K28: Aragorn | L28: 3 | M28: 499 | N28: 1497
I29: 2013-01-18 | J29: Tallinn | K29: Aragorn | L29: 1 | M29: 499 | N29: 499
I30: 2013-01-07 | J30: Valga | K30: Balrog | L30: 6 | M30: 419 | N30: 2514
I31: 2013-01-19 | J31: Tallinn | K31: Frodo | L31: 3 | M31: 870 | N31: 2610
I32: 2013-01-18 | J32: Pärnu | K32: Eldar | L32: 1 | M32: 465 | N32: 465
I33: 2013-01-10 | J33: Pärnu | K33: Rohan | L33: 4 | M33: 340 | N33: 1360
I34: 2013-01-19 | J34: Tartu | K34: Kalvar | L34: 1 | M34: 699 | N34: 699
I35: 2013-01-20 | J35: Tallinn | K35: Elend | L35: 2 | M35: 920 | N35: 1840
I36: 2013-01-07 | J36: Valga | K36: Frodo | L36: 1 | M36: 870 | N36: 870
I37: 2013-01-20 | J37: Võru | K37: Sauron | L37: 3 | M37: 339 | N37: 1017
I38: 2013-01-21 | J38: Pärnu | K38: Arven | L38: 1 | M38: 369 | N38: 369
I39: 2013-01-25 | J39: Võru | K39: Sauron | L39: 1 | M39: 339 | N39: 339
I40: 2013-01-04 | J40: Tartu | K40: Balrog | L40: 5 | M40: 419 | N40: 2095

Sheet SumIF
E1: veeb | F1: Klipp SumIF | J1: Harjutustabel | L1: Puidu müük
B3: Funktsioonid COUNTIF ja SUMIF | J3: Arvutite müükide arvestus | N3: AM_SIF
J5: A_Kuupäev | K5: A_Linn | L5: A_Arvuti | M5: A_Arv | N5: A_Hind | O5: A_Maksumus
J6: 2013-01-02 | K6: Tallinn | L6: Frodo | M6: 2 | N6: =VLOOKUP(A_Arvuti, Arvutid, 6, 0) -> 870 | O6: =A_Hind*A_Arv -> 1740
J7: 2013-01-02 | K7: Valga | L7: Balrog | M7: 1 | N7: 419 | O7: 419
J8: 2013-01-03 | K8: Tallinn | L8: Aragorn | M8: 2 | N8: 499 | O8: 998
J9: 2013-01-03 | K9: Tallinn | L9: Balrog | M9: 3 | N9: 419 | O9: 1257
J10: 2013-01-03 | K10: Võru | L10: Gandalf | M10: 2 | N10: 849 | O10: 1698
J11: 2013-01-04 | K11: Tallinn | L11: Eldar | M11: 3 | N11: 465 | O11: 1395
J12: 2013-01-04 | K12: Tartu | L12: Balrog | M12: 5 | N12: 419 | O12: 2095
J13: 2013-01-07 | K13: Pärnu | L13: Eldar | M13: 3 | N13: 465 | O13: 1395
J14: 2013-01-07 | K14: Tallinn | L14: Faram | M14: 1 | N14: 599 | O14: 599
J15: 2013-01-07 | K15: Valga | L15: Balrog | M15: 6 | N15: 419 | O15: 2514
J16: 2013-01-07 | K16: Valga | L16: Frodo | M16: 1 | N16: 870 | O16: 870
J17: 2013-01-09 | K17: Tallinn | L17: Grimbold | M17: 6 | N17: 1149 | O17: 6894
J18: 2013-01-10 | K18: Pärnu | L18: Elend | M18: 1 | N18: 920 | O18: 920
J19: 2013-01-10 | K19: Pärnu | L19: Rohan | M19: 4 | N19: 340 | O19: 1360
J20: 2013-01-10 | K20: Tartu | L20: Sauron | M20: 2 | N20: 339 | O20: 678
J21: 2013-01-11 | K21: Tallinn | L21: Frodo | M21: 1 | N21: 870 | O21: 870
B22: Arvud | C22: arv | J22: 2013-01-11 | K22: Tartu | L22: Balrog | M22: 2 | N22: 419 | O22: 838
B23: 23 | C23: 21 | E23: Mitu korda esineb loetelus arv 13 | J23: 2013-01-11 | K23: Valga | L23: Aragorn | M23: 1 | N23: 499 | O23: 499
B24: -45 | E24: Mitu korda esineb loetelus lahtris arv olev arv | J24: 2013-01-14 | K24: Pärnu | L24: Gandalf | M24: 3 | N24: 849 | O24: 2547
B25: 13 | E25: Positiivsete arvude summa | J25: 2013-01-14 | K25: Tartu | L25: Frodo | M25: 4 | N25: 870 | O25: 3480
B26: 18 | E26: Positiivsete arvude arv | J26: 2013-01-14 | K26: Valga | L26: Kalvar | M26: 2 | N26: 699 | O26: 1398
B27: 21 | E27: Positiivsete arvude aritmeetiline keskmine | J27: 2013-01-16 | K27: Tallinn | L27: Arven | M27: 5 | N27: 369 | O27: 1845
B28: 13 | E28: Mitu korda esineb loetelus arv 21 | J28: 2013-01-17 | K28: Tallinn | L28: Balrog | M28: 7 | N28: 419 | O28: 2933
B29: -16 | E29: Negatiivsete arvude summa | J29: 2013-01-17 | K29: Tartu | L29: Aragorn | M29: 3 | N29: 499 | O29: 1497
B30: 21 | E30: Negatiivsete arvude arv | J30: 2013-01-18 | K30: Pärnu | L30: Eldar | M30: 1 | N30: 465 | O30: 465
B31: 13 | E31: Negatiivsete arvude aritmeetiline keskmine | J31: 2013-01-18 | K31: Tallinn | L31: Aragorn | M31: 1 | N31: 499 | O31: 499
J32: 2013-01-19 | K32: Tallinn | L32: Frodo | M32: 3 | N32: 870 | O32: 2610
J33: 2013-01-19 | K33: Tartu | L33: Kalvar | M33: 1 | N33: 699 | O33: 699
J34: 2013-01-19 | K34: Võru | L34: Elend | M34: 5 | N34: 920 | O34: 4600
J35: 2013-01-20 | K35: Tallinn | L35: Elend | M35: 2 | N35: 920 | O35: 1840
J36: 2013-01-20 | K36: Võru | L36: Sauron | M36: 3 | N36: 339 | O36: 1017
J37: 2013-01-21 | K37: Pärnu | L37: Arven | M37: 1 | N37: 369 | O37: 369
J38: 2013-01-25 | K38: Võru | L38: Sauron | M38: 1 | N38: 339 | O38: 339
J39: 2013-01-26 | K39: Pärnu | L39: Gandalf | M39: 2 | N39: 849 | O39: 1698
M41: =SUM(M6:M40) -> 90 | O41: 54875

Sheet D_Fumkts
I5: Müükide arvestus | L5: =SUBTOTAL(9, L8:L42) -> 90 | N5: =SUBTOTAL(9, N8:N42) -> 54875
I7: Kuupäev | J7: Linn | K7: Arvuti | L7: Arv | M7: Hind | N7: Maksumus
I8: 2013-01-02 | J8: Tallinn | K8: Frodo | L8: 2 | M8: =VLOOKUP(Arvuti, Arvutid, 6, 0) -> 870 | N8: =Hind*Arv -> 1740
I9: 2013-01-02 | J9: Valga | K9: Balrog | L9: 1 | M9: 419 | N9: 419
I10: 2013-01-03 | J10: Tallinn | K10: Aragorn | L10: 2 | M10: 499 | N10: 998
I11: 2013-01-03 | J11: Tallinn | K11: Balrog | L11: 3 | M11: 419 | N11: 1257
I12: 2013-01-03 | J12: Võru | K12: Gandalf | L12: 2 | M12: 849 | N12: 1698
I13: 2013-01-04 | J13: Tallinn | K13: Eldar | L13: 3 | M13: 465 | N13: 1395
I14: 2013-01-04 | J14: Tartu | K14: Balrog | L14: 5 | M14: 419 | N14: 2095
I15: 2013-01-07 | J15: Pärnu | K15: Eldar | L15: 3 | M15: 465 | N15: 1395
I16: 2013-01-07 | J16: Tallinn | K16: Faram | L16: 1 | M16: 599 | N16: 599
I17: 2013-01-07 | J17: Valga | K17: Balrog | L17: 6 | M17: 419 | N17: 2514
I18: 2013-01-07 | J18: Valga | K18: Frodo | L18: 1 | M18: 870 | N18: 870
I19: 2013-01-09 | J19: Tallinn | K19: Grimbold | L19: 6 | M19: 1149 | N19: 6894
I20: 2013-01-10 | J20: Pärnu | K20: Elend | L20: 1 | M20: 920 | N20: 920
I21: 2013-01-10 | J21: Pärnu | K21: Rohan | L21: 4 | M21: 340 | N21: 1360
I22: 2013-01-10 | J22: Tartu | K22: Sauron | L22: 2 | M22: 339 | N22: 678
B23: Antud linnades müüdud arvutite arv ja maksumus | I23: 2013-01-11 | J23: Tallinn | K23: Frodo | L23: 1 | M23: 870 | N23: 870
B24: Linn | F24: Arv | G24: Maksumus | I24: 2013-01-11 | J24: Tartu | K24: Balrog | L24: 2 | M24: 419 | N24: 838
B25: Tallinn | F25: =DSUM(AM_1, "Arv", B24:B26) -> 53 | G25: =DSUM(AM_1, "Maksumus", B24:B26) -> 32767 | I25: 2013-01-11 | J25: Valga | K25: Aragorn | L25: 1 | M25: 499 | N25: 499
B26: Tartu | I26: 2013-01-14 | J26: Pärnu | K26: Gandalf | L26: 3 | M26: 849 | N26: 2547
I27: 2013-01-14 | J27: Tartu | K27: Frodo | L27: 4 | M27: 870 | N27: 3480
I28: 2013-01-14 | J28: Valga | K28: Kalvar | L28: 2 | M28: 699 | N28: 1398
B29: Linn | C29: Arvuti | F29: Arv | G29: Maksumus | I29: 2013-01-16 | J29: Tallinn | K29: Arven | L29: 5 | M29: 369 | N29: 1845
B30: Tallinn | C30: Aragorn | F30: =DSUM(AM_1, "Arv", B29:C30) -> 3 | G30: =DSUM(AM_1, "Maksumus", B29:C30) -> 1497 | I30: 2013-01-17 | J30: Tallinn | K30: Balrog | L30: 7 | M30: 419 | N30: 2933
I31: 2013-01-17 | J31: Tartu | K31: Aragorn | L31: 3 | M31: 499 | N31: 1497
I32: 2013-01-18 | J32: Pärnu | K32: Eldar | L32: 1 | M32: 465 | N32: 465
B33: Arvuti | C33: Kuupäev | D33: Kuupäev | F33: Arv | G33: Maksumus | I33: 2013-01-18 | J33: Tallinn | K33: Aragorn | L33: 1 | M33: 499 | N33: 499
B34: Aragorn | C34: >=01.01.13 | D34: <=15.01.13 | F34: =DSUM(AM_1, "Arv", B33:D34) -> 3 | G34: =DSUM(AM_1, "Maksumus", B33:D34) -> 1497 | I34: 2013-01-19 | J34: Tallinn | K34: Frodo | L34: 3 | M34: 870 | N34: 2610
I35: 2013-01-19 | J35: Tartu | K35: Kalvar | L35: 1 | M35: 699 | N35: 699
I36: 2013-01-19 | J36: Võru | K36: Elend | L36: 5 | M36: 920 | N36: 4600
I37: 2013-01-20 | J37: Tallinn | K37: Elend | L37: 2 | M37: 920 | N37: 1840
I38: 2013-01-20 | J38: Võru | K38: Sauron | L38: 3 | M38: 339 | N38: 1017
I39: 2013-01-21 | J39: Pärnu | K39: Arven | L39: 1 | M39: 369 | N39: 369
I40: 2013-01-25 | J40: Võru | K40: Sauron | L40: 1 | M40: 339 | N40: 339
I41: 2013-01-26 | J41: Pärnu | K41: Gandalf | L41: 2 | M41: 849 | N41: 1698

Sheet P_abi
B2: Puidu hinnkiri
B4: Liik | C4: Sort
C5: 1 | D5: 2 | E5: 3
B6: haab | C6: 50 | D6: 45 | E6: 40
B7: kask | C7: 70 | D7: 63 | E7: 56
B8: kuusk | C8: 80 | D8: 72 | E8: 64
B9: küte | C9: 47 | D9: 42 | E9: 38
B10: lepp | C10: 65 | D10: 59 | E10: 52
B11: mänd | C11: 75 | D11: 68 | E11: 60
B12: saar | C12: 85 | D12: 77 | E12: 68
B13: tamm | C13: 110 | D13: 99 | E13: 88
B14: vaher | C14: 95 | D14: 86 | E14: 76
B18: P_müüjad | D18: Maakonnad
B19: Karu | D19: Harju
B20: Hunt | D20: Lääne
B21: Jänes | D21: Paide
B22: Rebane | D22: Pärnu
B23: Siil | D23: Rapla
B24: Põder | D24: Valga
B25: Ilves | D25: Viljandi
D26: Võru
B29: P_ostjad | C29: Maakond
B30: Haab | C30: Pärnu
B31: Ilves | C31: Lääne
B32: Juur | C32: Pärnu
B33: Kaasik | C33: Pärnu
B34: Karu | C34: Lääne
B35: Kask | C35: Pärnu
B36: Kass | C36: Paide
B37: Kaun | C37: Pärnu
B38: Kuusik | C38: Viljandi
B39: Kuusk | C39: Lääne
B40: Känd | C40: Harju
B41: Lepik | C41: Paide
B42: Lepp | C42: Viljandi
B43: Lind | C43: Valga
B44: Luik | C44: Viljandi
B45: Mänd | C45: Harju
B46: Paju | C46: Võru
B47: Pihel | C47: Rapla
B48: Saar | C48: Valga
B49: Seen | C49: Võru
B50: Tuvi | C50: Harju
B51: Vaher | C51: Rapla
B52: Varblane | C52: Harju
B53: Vares | C53: Rapla
